Workbook

Sheet Table S1
A1: Table S1 Data Information
A2: Age | B2: breed | C2: Run | D2: BioProject | E2: BioSample | F2: title | G2: DOI
A3: 2-year-old | B3: Bama | C3: SRR12511398 | D3: PRJNA637678 | E3: SAMN15870115 | F3: A Pig Body Map Transcriptome Uncovers Diverse Organ Physiology with emphasis on skeletal muscle and adipose tissues and Evolutionary Dynamics of Transcription | G3: DOI: 10.1046/j.1365-2052.2001.00752.x | H3: Anim Genet | I3: 2001 Jun
A4: 2-year-old | B4: Bama | C4: SRR12511397 | D4: PRJNA637678 | E4: SAMN15870116
A5: 2-year-old | B5: Bama | C5: SRR12511396 | D5: PRJNA637678 | E5: SAMN15870117
A6: 2-year-old | B6: Bama | C6: SRR12511395 | D6: PRJNA637678 | E6: SAMN15870118
A7: 2-year-old | B7: Bama | C7: SRR12511394 | D7: PRJNA637678 | E7: SAMN15870119
A8: 2-year-old | B8: Bama | C8: SRR12511393 | D8: PRJNA637678 | E8: SAMN15870120
A9: 2 weeks | B9: Large White | C9: SRR10764658 | D9: PRJNA597497 | E9: SAMN13676582 | F9: A compendium and comparative epigenomics analysis of cis-regulatory elements in the pig genome | G9: doi: 10.1038/s41467-021-22448-x | H9: Nat Commu | I9: 2021 Apr
A10: 2 weeks | B10: Large White | C10: SRR10764659 | D10: PRJNA597497 | E10: SAMN13676582
A11: 2 years old | B11: Bamaxiang | C11: SRR7585923 | D11: PRJNA482496 | E11: SAMN09691011 | F11: Building a sequence map of the pig pan-genome from multiple de novo assemblies and Hi-C data | G11: DOI:10.1007/s11427-019-9551-7 | H11: Science China. Life sciences | I11: 2019 Apr
A12: 2 years old | B12: Bamaxiang | C12: SRR7591435 | D12: PRJNA482496 | E12: SAMN09691011
A13: 2 years old | B13: Bamaxiang | C13: SRR7591436 | D13: PRJNA482496 | E13: SAMN09691011
A14: Fetus(90 days) | B14: Bamaxiang | C14: SRR7585922 | D14: PRJNA482496 | E14: SAMN09691012
A15: Fetus(90 days) | B15: Bamaxiang | C15: SRR7591437 | D15: PRJNA482496 | E15: SAMN09691012
A16: Fetus(90 days) | B16: Bamaxiang | C16: SRR7591438 | D16: PRJNA482496 | E16: SAMN09691012
A17: Fetus(90 days) | B17: Bamaxiang | C17: SRR7591439 | D17: PRJNA482496 | E17: SAMN09691012
A18: Fetus(90 days) | B18: Bamaxiang | C18: SRR7591440 | D18: PRJNA482496 | E18: SAMN09691012
A19: Fetus(90 days) | B19: Bamaxiang | C19: SRR7591441 | D19: PRJNA482496 | E19: SAMN09691012
A20: Fetus(90 days) | B20: Bamaxiang | C20: SRR7591442 | D20: PRJNA482496 | E20: SAMN09691012
A21: 2 years old | B21: Bamaxiang | C21: SRR7585921 | D21: PRJNA482496 | E21: SAMN09691009
A22: 2 years old | B22: Bamaxiang | C22: SRR7591443 | D22: PRJNA482496 | E22: SAMN09691009
A23: 2 years old | B23: Bamaxiang | C23: SRR7591444 | D23: PRJNA482496 | E23: SAMN09691009
A24: 2 years old | B24: Bamaxiang | C24: SRR7585920 | D24: PRJNA482496 | E24: SAMN09691010
A25: 2 years old | B25: Bamaxiang | C25: SRR7591445 | D25: PRJNA482496 | E25: SAMN09691010
A26: 2 years old | B26: Bamaxiang | C26: SRR7591446 | D26: PRJNA482496 | E26: SAMN09691010
A27: 2 years old | B27: Bamaxiang | C27: SRR7585919 | D27: PRJNA482496 | E27: SAMN09691007
A28: 2 years old | B28: Bamaxiang | C28: SRR7591447 | D28: PRJNA482496 | E28: SAMN09691007
A29: 2 years old | B29: Bamaxiang | C29: SRR7591448 | D29: PRJNA482496 | E29: SAMN09691007
A30: 2 years old | B30: Bamaxiang | C30: SRR7585918 | D30: PRJNA482496 | E30: SAMN09691008
A31: 2 years old | B31: Bamaxiang | C31: SRR7591451 | D31: PRJNA482496 | E31: SAMN09691008
A32: 2 years old | B32: Bamaxiang | C32: SRR7591452 | D32: PRJNA482496 | E32: SAMN09691008
A33: 2 years old | B33: Bamaxiang | C33: SRR7585913 | D33: PRJNA482496 | E33: SAMN09691006
A34: 2 years old | B34: Bamaxiang | C34: SRR7591453 | D34: PRJNA482496 | E34: SAMN09691006
A35: 2 years old | B35: Bamaxiang | C35: SRR7591454 | D35: PRJNA482496 | E35: SAMN09691006
A36: not collected | B36: Chinese wild boar | C36: SRR7585912 | D36: PRJNA482496 | E36: SAMN09691003
A37: not collected | B37: Large White | C37: SRR7585917 | D37: PRJNA482496 | E37: SAMN09690999
A38: not collected | B38: Large White | C38: SRR7585916 | D38: PRJNA482496 | E38: SAMN09691000
A39: not collected | B39: Large White | C39: SRR7585911 | D39: PRJNA482496 | E39: SAMN09691004
A40: not collected | B40: Rongchang | C40: SRR7585915 | D40: PRJNA482496 | E40: SAMN09691001
A41: not collected | B41: Rongchang | C41: SRR7585914 | D41: PRJNA482496 | E41: SAMN09691002
A42: not collected | B42: Large White | C42: SRR7585910 | D42: PRJNA482496 | E42: SAMN09691005
A43: not collected | B43: Large White pigs | C43: SRR12107015 | D43: PRJNA642743 | E43: SAMN15398107 | F43: The asynchronous establishment of chromatin 3D architecture between in vitro fertilized and uniparental preimplantation pig embryos | G43: doi: 10.1186/s13059-020-02095-z | H43: Genome Biology | I43: 2020 Aug
A44: not collected | B44: Large White pigs | C44: SRR12107016 | D44: PRJNA642743 | E44: SAMN15398107
A45: not collected | B45: Large White pigs | C45: SRR12107017 | D45: PRJNA642743 | E45: SAMN15398106
A46: not collected | B46: Large White pigs | C46: SRR12107018 | D46: PRJNA642743 | E46: SAMN15398106
A47: not collected | B47: Large White pigs | C47: SRR12107019 | D47: PRJNA642743 | E47: SAMN15398105
A48: not collected | B48: Large White pigs | C48: SRR12107020 | D48: PRJNA642743 | E48: SAMN15398105
A49: not collected | B49: Large White pigs | C49: SRR12107021 | D49: PRJNA642743 | E49: SAMN15398104
A50: not collected | B50: Large White pigs | C50: SRR12107022 | D50: PRJNA642743 | E50: SAMN15398103
A51: not collected | B51: Large White pigs | C51: SRR12107023 | D51: PRJNA642743 | E51: SAMN15398103
A52: not collected | B52: Large White pigs | C52: SRR12107024 | D52: PRJNA642743 | E52: SAMN15398102
A53: not collected | B53: Large White pigs | C53: SRR12107025 | D53: PRJNA642743 | E53: SAMN15398102
A54: not collected | B54: Large White pigs | C54: SRR12107026 | D54: PRJNA642743 | E54: SAMN15398101
A55: not collected | B55: Large White pigs | C55: SRR12107027 | D55: PRJNA642743 | E55: SAMN15398100
A56: not collected | B56: Large White pigs | C56: SRR12107028 | D56: PRJNA642743 | E56: SAMN15398099
A57: not collected | B57: Large White pigs | C57: SRR12107029 | D57: PRJNA642743 | E57: SAMN15398098
A58: not collected | B58: Large White pigs | C58: SRR12107030 | D58: PRJNA642743 | E58: SAMN15398097
A59: not collected | B59: Large White pigs | C59: SRR12107031 | D59: PRJNA642743 | E59: SAMN15398096
A60: not collected | B60: Large White pigs | C60: SRR12107032 | D60: PRJNA642743 | E60: SAMN15398095
A61: not collected | B61: Large White pigs | C61: SRR12107033 | D61: PRJNA642743 | E61: SAMN15398094
A62: not collected | B62: Large White pigs | C62: SRR12107034 | D62: PRJNA642743 | E62: SAMN15398093
A63: not collected | B63: Large White pigs | C63: SRR12107035 | D63: PRJNA642743 | E63: SAMN15398092
A64: not collected | B64: Large White pigs | C64: SRR12107036 | D64: PRJNA642743 | E64: SAMN15398092
A65: not collected | B65: Large White pigs | C65: SRR12107037 | D65: PRJNA642743 | E65: SAMN15398091
A66: not collected | B66: Large White pigs | C66: SRR12107038 | D66: PRJNA642743 | E66: SAMN15398090
A67: not collected | B67: Large White pigs | C67: SRR12107039 | D67: PRJNA642743 | E67: SAMN15398120
A68: not collected | B68: Large White pigs | C68: SRR12107040 | D68: PRJNA642743 | E68: SAMN15398119
A69: embryonic day 35 | B69: Luchuan pig | C69: SRR13651466 | D69: PRJNA700585 | E69: SAMN17833785 | F69: Reorganization of chromatin architecture during prenatal development of porcine skeletal muscle | G69: DOI: 10.1093/dnares/dsab003 | H69: Journal List | I69: 2021 May
A70: embryonic day 35 | B70: Luchuan pig | C70: SRR13651467 | D70: PRJNA700585 | E70: SAMN17833784
A71: embryonic day 80 | B71: Luchuan pig | C71: SRR13651469 | D71: PRJNA700585 | E71: SAMN17833782
A72: embryonic day 80 | B72: Luchuan pig | C72: SRR13651470 | D72: PRJNA700585 | E72: SAMN17833781
A73: embryonic day 80 | B73: Luchuan pig | C73: SRR13651471 | D73: PRJNA700585 | E73: SAMN17833780
A74: embryonic day 35 | B74: Luchuan pig | C74: SRR13651468 | D74: PRJNA700585 | E74: SAMN17833783
A75: 300 day | B75: Meishan | C75: SRR11509496 | D75: PRJNA613109 | E75: SAMN14422843 | F75: The Meishan pig genome reveals structural variation-mediated gene expression and phenotypic divergence underlying Asian pig domestication | G75: DOI: 10.1111/1755-0998.13396 | H75: RESOURCE ARTICLE | I75: 2021 Apr
A76: 300 day | B76: Meishan | C76: SRR11509497 | D76: PRJNA613109 | E76: SAMN14422843
A77: 300 day | B77: Meishan | C77: SRR11509498 | D77: PRJNA613109 | E77: SAMN14422843
A78: 300 day | B78: Meishan | C78: SRR11509499 | D78: PRJNA613109 | E78: SAMN14422843

Sheet Table S2
A1: Table S2 Summary statistics of the Hi-C data for all samples. This table shows the number of Hi-C sequencing reads in the category of each processing step in Juicer.
A2: Sample | B2: breed | C2: tissue | D2: Sequenced Reads | E2: clean.reads | F2: readslength | G2: deepth | H2: Normal Paired | I2: Chimeric Paired | J2: Chimeric Ambiguous | K2: Unmapped | L2: mappingrate | M2: Alignable Reads (Normal+Chimeric Paired) | N2: Low Mapping Quality (<30) | O2: HiCContacts | P2: Inter chromosomal | Q2: Intra chromosomal | R2: Intra Short Range (<20 kb) | S2: Intra Long Range (≥20 kb)
A3: SAMEA103989211 | B3: Large white | C3: liver | D3: 90948924 | E3: =D3-17186-110821 -> 90820917 | F3: 150 | G3: =2*D3*F3/(3*1000000000) -> 9.0948924 | H3: 42079745 | I3: 40818303 | J3: 6518172 | K3: 1532704 | L3: =1-(K3/D3) -> 98.31% | M3: 82898048 | N3: 9351877 | O3: 38946912 | P3: 6057841 | Q3: 32889071 | R3: 19575081 | S3: 13309968
A4: SAMEA103989648 | B4: Large white | C4: liver | D4: 165529922 | E4: =D4-345627-23785 -> 165160510 | F4: 150 | G4: 16.5529922 | H4: 109833661 | I4: 49381314 | J4: 4396902 | K4: 1918045 | L4: 98.84% | M4: 159214975 | N4: 12351010 | O4: 106104891 | P4: 18081226 | Q4: 88023665 | R4: 44173949 | S4: 43846188
A5: SAMEA103989993 | B5: Large white | C5: liver | D5: 165285596 | E5: =D5-324554-22399 -> 164938643 | F5: 150 | G5: 16.5285596 | H5: 95119966 | I5: 63017642 | J5: 5358959 | K5: 1789029 | L5: 98.92% | M5: 158137608 | N5: 12648863 | O5: 110793087 | P5: 21567318 | Q5: 89225769 | R5: 38788634 | S5: 50432179
A6: SAMEA103990030 | B6: Large white | C6: liver | D6: 168050522 | E6: =D6-326223-26724 -> 167697575 | F6: 150 | G6: 16.8050522 | H6: 100813724 | I6: 60141192 | J6: 5394472 | K6: 1701134 | L6: 98.99% | M6: 160954916 | N6: 12291075 | O6: 104583064 | P6: 22178910 | Q6: 82404154 | R6: 27874543 | S6: 54526126
A7: SAMEA103990269 | B7: Large white | C7: liver | D7: 195573465 | E7: =D7-159217-37048 -> 195377200 | F7: 150 | G7: 19.5573465 | H7: 82045373 | I7: 90711089 | J7: 19487184 | K7: 3329819 | L7: 98.30% | M7: 172756462 | N7: 24647361 | O7: 93453082 | P7: 17205318 | Q7: 76247764 | R7: 36265417 | S7: 39957790
A8: SAMEA103990890 | B8: Large white | C8: liver | D8: 157480346 | E8: =157480346-269021-24797 -> 157186528 | F8: 150 | G8: 15.7480346 | H8: 92269081 | I8: 59176622 | J8: 4566792 | K8: 1467851 | L8: 99.07% | M8: 151445703 | N8: 10773661 | O8: 99175210 | P8: 16270053 | Q8: 82905157 | R8: 34402993 | S8: 48498001
A9: SAMEA7390795 | B9: Large white | C9: muscle | D9: 494332893 | E9: =D9-46863-1945816 -> 492340214 | F9: 150 | G9: 49.4332893 | H9: 252073242 | I9: 218683948 | J9: 16535316 | K9: 7040387 | L9: 98.58% | M9: 470757190 | N9: 34197163 | O9: 293080536 | P9: 136358407 | Q9: 156722129 | R9: 41485423 | S9: 115231989
A10: SAMEA7390796 | B10: Large white | C10: muscle | D10: 654909642 | E10: =D10-60848-3593297 -> 651255497 | F10: 150 | G10: 65.4909642 | H10: 372101343 | I10: 249921619 | J10: 21039810 | K10: 11846870 | L10: 98.19% | M10: 622022962 | N10: 44983062 | O10: 400636264 | P10: 146940165 | Q10: 253696099 | R10: 71983566 | S10: 181697504
A11: SAMEA7390797 | B11: Large white | C11: muscle | D11: 476204172 | E11: =D11-44226-2097507 -> 474062439 | F11: 150 | G11: 47.6204172 | H11: 302773474 | I11: 149131573 | J11: 14834247 | K11: 9464878 | L11: 98.01% | M11: 451905047 | N11: 41264263 | O11: 296929767 | P11: 85825377 | Q11: 211104390 | R11: 114965700 | S11: 96125074
A12: SAMEA7390798 | B12: Large white | C12: muscle | D12: 685369147 | E12: =D12-56176-4810197 -> 680502774 | F12: 150 | G12: 68.5369147 | H12: 424289850 | I12: 221543970 | J12: 23002739 | K12: 16532588 | L12: 97.59% | M12: 645833820 | N12: 57079386 | O12: 414283325 | P12: 166661664 | Q12: 247621661 | R12: 89130582 | S12: 158471282
A13: SAMEA7390799 | B13: Large white | C13: muscle | D13: 646908804 | E13: =D13-42496-3864967 -> 643001341 | F13: 150 | G13: 64.6908804 | H13: 383250887 | I13: 228436728 | J13: 21550323 | K13: 13670866 | L13: 97.89% | M13: 611687615 | N13: 51311847 | O13: 406684605 | P13: 150459108 | Q13: 256225497 | R13: 85097038 | S13: 171122571
A14: SAMEA7390800 | B14: Large white | C14: muscle | D14: 489704084 | E14: =D14-48220-1742242 -> 487913622 | F14: 150 | G14: 48.9704084 | H14: 258028558 | I14: 209962929 | J14: 15207928 | K14: 6504669 | L14: 98.67% | M14: 467991487 | N14: 29901578 | O14: 294043214 | P14: 93402069 | Q14: 200641145 | R14: 61285601 | S14: 139341411
A15: SAMEA7629003 | B15: Large white | C15: liver | D15: 200398000 | E15: =D27-350167 -> 155044897 | F15: 150 | G15: 20.0398 | H15: 78758098 | I15: 94076583 | J15: 23915210 | K15: 3648109 | L15: 98.18% | M15: 172834681 | N15: 27645996 | O15: 95179614 | P15: 30249754 | Q15: 64929860 | R15: 27177815 | S15: 37750353
A16: SAMEA7629006 | B16: Large white | C16: liver | D16: 178399752 | E16: =D16-160621-33518 -> 178205613 | F16: 150 | G16: 17.8399752 | H16: 72395906 | I16: 78883488 | J16: 23719952 | K16: 3400406 | L16: 98.09% | M16: 151279394 | N16: 25511624 | O16: 74658082 | P16: 22694719 | Q16: 51963363 | R16: 21826603 | S16: 30135004
A17: SAMEA7629015 | B17: Large white | C17: muscle | D17: 133446573 | E17: =D17-142567-25299 -> 133278707 | F17: 150 | G17: 13.3446573 | H17: 54985786 | I17: 63170253 | J17: 13579425 | K17: 1711109 | L17: 98.72% | M17: 118156039 | N17: 9867554 | O17: 37706069 | P17: 13789921 | Q17: 23916148 | R17: 8425236 | S17: 15489246
A18: SAMEA7629016 | B18: Large white | C18: muscle | D18: 164356035 | E18: =D18-1158981-30820 -> 163166234 | F18: 150 | G18: 16.4356035 | H18: 81458432 | I18: 62918425 | J18: 16907600 | K18: 3071578 | L18: 98.13% | M18: 144376857 | N18: 12138936 | O18: 38754876 | P18: 15511574 | Q18: 23243302 | R18: 9022160 | S18: 14220771
A19: SAMEA7629018 | B19: Large white | C19: muscle | D19: 168227818 | E19: =D19-120694-31673 -> 168075451 | F19: 150 | G19: 16.8227818 | H19: 72159406 | I19: 77384170 | J19: 16982361 | K19: 1701881 | L19: 98.99% | M19: 149543576 | N19: 13777491 | O19: 58444096 | P19: 23794903 | Q19: 34649193 | R19: 14096434 | S19: 20552451
A20: SAMEA7629032 | B20: Large white | C20: liver | D20: 156071731 | E20: =D20-111765-29278 -> 155930688 | F20: 150 | G20: 15.6071731 | H20: 61598213 | I20: 72701952 | J20: 19198633 | K20: 2572933 | L20: 98.35% | M20: 134300165 | N20: 21460150 | O20: 75313385 | P20: 27112245 | Q20: 48201140 | R20: 21551995 | S20: 26647793
A21: SAMEA7629033 | B21: Large white | C21: liver | D21: 232883427 | E21: =D21-175953-44050 -> 232663424 | F21: 150 | G21: 23.2883427 | H21: 89651971 | I21: 103533252 | J21: 34251068 | K21: 5447136 | L21: 97.66% | M21: 193185223 | N21: 32598048 | O21: 93844039 | P21: 40941668 | Q21: 52902371 | R21: 25664360 | S21: 27235679
A22: SAMEA7629044 | B22: Large white | C22: muscle | D22: 148990261 | E22: =D22-158554-28311 -> 148803396 | F22: 150 | G22: 14.8990261 | H22: 64398704 | I22: 66047066 | J22: 16884837 | K22: 1659654 | L22: 98.89% | M22: 130445770 | N22: 13231468 | O22: 52815855 | P22: 22314947 | Q22: 30500908 | R22: 14929106 | S22: 15571002
A23: SAMEA7629046 | B23: Large white | C23: muscle | D23: 140583105 | E23: =D23-158554-26304 -> 140398247 | F23: 150 | G23: 14.0583105 | H23: 62920754 | I23: 58170182 | J23: 17661495 | K23: 1830674 | L23: 98.70% | M23: 121090936 | N23: 10944907 | O23: 38847987 | P23: 18399350 | Q23: 20448637 | R23: 9188570 | S23: 11259629
A24: SAMEA7629251 | B24: Large white | C24: liver | D24: 157890403 | E24: =D24-138000-29726 -> 157722677 | F24: 150 | G24: 15.7890403 | H24: 74547199 | I24: 64061974 | J24: 16255926 | K24: 3025304 | L24: 98.08% | M24: 138609173 | N24: 19824905 | O24: 76705799 | P24: 15919143 | Q24: 60786656 | R24: 21857407 | S24: 38912791
A25: SAMEA7629252 | B25: Large white | C25: liver | D25: 261882311 | E25: =D25-217715-49776 -> 261614820 | F25: 150 | G25: 26.1882311 | H25: 86883747 | I25: 113671874 | J25: 53641007 | K25: 7685683 | L25: 97.07% | M25: 200555621 | N25: 39830716 | O25: 106504426 | P25: 31290311 | Q25: 75214115 | R25: 22830784 | S25: 52380109
A26: SAMEA7629254 | B26: Large white | C26: liver | D26: 159175067 | E26: =D26-120049-29810 -> 159025208 | F26: 150 | G26: 15.9175067 | H26: 58956671 | I26: 77495436 | J26: 20280298 | K26: 2442662 | L26: 98.47% | M26: 136452107 | N26: 20988207 | O26: 76489489 | P26: 18420161 | Q26: 58069328 | R26: 20214675 | S26: 37851865
A27: SAMEA7629255 | B27: Large white | C27: muscle | D27: 155395064 | E27: =D27-143032-29291 -> 155222741 | F27: 150 | G27: 15.5395064 | H27: 57715992 | I27: 79679100 | J27: 16087122 | K27: 1912850 | L27: 98.77% | M27: 137395092 | N27: 14656862 | O27: 63536296 | P27: 22232904 | Q27: 41303392 | R27: 14540985 | S27: 26760894
A28: SAMEA7629257 | B28: Large white | C28: muscle | D28: 142309276 | E28: =D28-141351-26722 -> 142141203 | F28: 150 | G28: 14.2309276 | H28: 54632892 | I28: 69203254 | J28: 16512385 | K28: 1960745 | L28: 98.62% | M28: 123836146 | N28: 12227398 | O28: 51416957 | P28: 18752109 | Q28: 32664848 | R28: 10839797 | S28: 21823839
A29: SAMN09690999 | B29: Large white | C29: ear | D29: 515902011 | E29: =D29-1797037 -> 514104974 | F29: 150 | G29: 51.5902011 | H29: 210193810 | I29: 277028837 | J29: 22975265 | K29: 5704099 | L29: 98.89% | M29: 487222647 | N29: 38694672 | O29: 401180623 | P29: 148116432 | Q29: 253064191 | R29: 75037478 | S29: 178001139
A30: SAMN09691000 | B30: Large white | C30: ear | D30: 501958388 | E30: =D30-2145191 -> 499813197 | F30: 150 | G30: 50.1958388 | H30: 200727072 | I30: 271422148 | J30: 22621675 | K30: 7187493 | L30: 98.57% | M30: 472149220 | N30: 39487263 | O30: 383894834 | P30: 158809785 | Q30: 225085049 | R30: 76881841 | S30: 148164559
A31: SAMN09691001 | B31: Rongchang | C31: ear | D31: 497838957 | E31: =D31-1840346 -> 495998611 | F31: 150 | G31: 49.7838957 | H31: 200433456 | I31: 264640846 | J31: 24224419 | K31: 8540236 | L31: 98.28% | M31: 465074302 | N31: 37504204 | O31: 381828719 | P31: 139702729 | Q31: 242125990 | R31: 75731930 | S31: 166363822
A32: SAMN09691002 | B32: Rongchang | C32: ear | D32: 551354086 | E32: =D32-2321358 -> 549032728 | F32: 150 | G32: 55.1354086 | H32: 225097020 | I32: 295739587 | J32: 23399761 | K32: 7117718 | L32: 98.71% | M32: 520836607 | N32: 37546492 | O32: 427966385 | P32: 133330139 | Q32: 294636246 | R32: 83805820 | S32: 210789336
A33: SAMN09691003 | B33: Chinese wild boar | C33: ear | D33: 254320731 | E33: =D33-2022883-37723 -> 252260125 | F33: 150 | G33: 25.4320731 | H33: 75625120 | I33: 161829678 | J33: 8060493 | K33: 8805440 | L33: 96.54% | M33: 237454798 | N33: 10160123 | O33: 99037026 | P33: 25748352 | Q33: 73288674 | R33: 26107420 | S33: 47167206
A34: SAMN09691004 | B34: Large white | C34: adipose | D34: 489178863 | E34: =D34-3969843 -> 485209020 | F34: 150 | G34: 48.9178863 | H34: 162685314 | I34: 292994148 | J34: 16909656 | K34: 16589745 | L34: 96.61% | M34: 455679462 | N34: 31506975 | O34: 320477610 | P34: 101568402 | Q34: 218909208 | R34: 125738094 | S34: 93137929
A35: SAMN09691005 | B35: Large white | C35: adipose | D35: 550354583 | E35: =D35-1968137 -> 548386446 | F35: 150 | G35: 55.0354583 | H35: 172277207 | I35: 348924769 | J35: 20503329 | K35: 8649278 | L35: 98.43% | M35: 521201976 | N35: 36182849 | O35: 383370104 | P35: 131624913 | Q35: 251745191 | R35: 74688125 | S35: 176904863
A36: SAMN09691006 | B36: bamaxiang | C36: liver | D36: 1159808664 | E36: =D36-774510-149654-5556 -> 1158878944 | F36: 150 | G36: 115.9808664 | H36: 470049686 | I36: 543959556 | J36: 123229466 | K36: 22569956 | L36: 98.05% | M36: 1014009242 | N36: 169113875 | O36: 674562485 | P36: 244830560 | Q36: 429731925 | R36: 129569766 | S36: 300139293
A37: SAMN09691007 | B37: bamaxiang | C37: liver | D37: 1272132667 | E37: =D37-129121-983024-7068 -> 1271013454 | F37: 150 | G37: 127.2132667 | H37: 500143056 | I37: 608632285 | J37: 137985277 | K37: 25372049 | L37: 98.01% | M37: 1108775341 | N37: 187847986 | O37: 758640311 | P37: 264221540 | Q37: 494418771 | R37: 146279865 | S37: 348119780
A38: SAMN09691008 | B38: bamaxiang | C38: liver | D38: 1203243513 | E38: =D38-977452-115836-94800 -> 1202055425 | F38: 150 | G38: 120.3243513 | H38: 458081045 | I38: 586896537 | J38: 131573835 | K38: 26692096 | L38: 97.78% | M38: 1044977582 | N38: 175505123 | O38: 693085582 | P38: 223002800 | Q38: 470082782 | R38: 164115905 | S38: 305949076
A39: SAMN09691009 | B39: bamaxiang | C39: liver | D39: 1362953064 | E39: =D39-119466-873846-89 -> 1361959663 | F39: 150 | G39: 136.2953064 | H39: 487677769 | I39: 704287506 | J39: 149659520 | K39: 21328269 | L39: 98.44% | M39: 1191965275 | N39: 195482419 | O39: 787001760 | P39: 326919351 | Q39: 460082409 | R39: 177220980 | S39: 282842594
A40: SAMN09691010 | B40: bamaxiang | C40: liver | D40: 1430124813 | E40: =D40-947158-142053-61 -> 1429035541 | F40: 150 | G40: 143.0124813 | H40: 521235857 | I40: 727772646 | J40: 155853810 | K40: 25262500 | L40: 98.23% | M40: 1249008503 | N40: 200562015 | O40: 797054042 | P40: 326286745 | Q40: 470767297 | R40: 173633846 | S40: 297117103
A41: SAMN09691011 | B41: bamaxiang | C41: liver | D41: 1263155855 | E41: =D41-812898-104484-54 -> 1262238419 | F41: 150 | G41: 126.3155855 | H41: 443520204 | I41: 660803450 | J41: 138717714 | K41: 20114487 | L41: 98.41% | M41: 1104323654 | N41: 151063145 | O41: 529209534 | P41: 212161518 | Q41: 317048016 | R41: 119458378 | S41: 197578239
A42: SAMN09691012 | B42: bamaxiang | C42: liver | D42: 2048668284 | E42: =D42-892585-112055-120-120-2500 -> 2047660904 | F42: 150 | G42: 204.8668284 | H42: 780944598 | I42: 1031488144 | J42: 199710820 | K42: 36524722 | L42: 98.22% | M42: 1812432742 | N42: 197978249 | O42: 627766125 | P42: 190706560 | Q42: 437059565 | R42: 177298431 | S42: 259733731
A43: SAMN13676582 | B43: Large white | C43: muscle | D43: 1189583975 | E43: =D43-160908-15939667 -> 1173483400 | F43: 150 | G43: 118.9583975 | H43: 495750558 | I43: 562556890 | J43: 88437000 | K43: 42839527 | L43: 96.40% | M43: 1058307448 | N43: 130017867 | O43: 666872245 | P43: 148804319 | Q43: 518067926 | R43: 268697817 | S43: 248707707
A44: SAMN14422843 | B44: Meishan | C44: muscle | D44: 1051479058 | E44: =D44-613306-2217651 -> 1048648101 | F44: 150 | G44: 105.1479058 | H44: 399449148 | I44: 548773920 | J44: 91707149 | K44: 11548841 | L44: 98.90% | M44: 948223068 | N44: 117095619 | O44: 462142804 | P44: 136160898 | Q44: 325981906 | R44: 130690670 | S44: 195270178
A45: SAMN15398090 | B45: Large white | C45: embryo | D45: 251019159 | E45: =D45-8810-663175 -> 250347174 | F45: 150 | G45: 25.1019159 | H45: 126910556 | I45: 102462641 | J45: 16539143 | K45: 5106819 | L45: 97.97% | M45: 229373197 | N45: 8546704 | O45: 9637339 | P45: 1833447 | Q45: 7803892 | R45: 4355771 | S45: 3446797
A46: SAMN15398091 | B46: Large white | C46: embryo | D46: 171167614 | E46: =D46-5890-630111 -> 170531613 | F46: 150 | G46: 17.1167614 | H46: 83716529 | I46: 51842178 | J46: 9158796 | K46: 26450111 | L46: 84.55% | M46: 135558707 | N46: 4251136 | O46: 4119617 | P46: 905544 | Q46: 3214073 | R46: 1853133 | S46: 1360247
A47: SAMN15398092 | B47: Large white | C47: embryo | D47: 401166834 | E47: =D47-3946-86705 -> 401076183 | F47: 150 | G47: 40.1166834 | H47: 187701175 | I47: 177280225 | J47: 30814066 | K47: 5371368 | L47: 98.66% | M47: 364981400 | N47: 30133072 | O47: 81925286 | P47: 14010301 | Q47: 67914985 | R47: 39679185 | S47: 28169533
A48: SAMN15398093 | B48: Large white | C48: embryo | D48: 137379128 | E48: =D48-1350-57908 -> 137319870 | F48: 150 | G48: 13.7379128 | H48: 63028215 | I48: 61440804 | J48: 10808087 | K48: 2102022 | L48: 98.47% | M48: 124469019 | N48: 15979773 | O48: 59363931 | P48: 10554960 | Q48: 48808971 | R48: 25109608 | S48: 23677153
A49: SAMN15398094 | B49: Large white | C49: embryo | D49: 228991134 | E49: =D49-2573-51405 -> 228937156 | F49: 150 | G49: 22.8991134 | H49: 125249879 | I49: 86071492 | J49: 14000703 | K49: 3669060 | L49: 98.40% | M49: 211321371 | N49: 7842515 | O49: 12345755 | P49: 711301 | Q49: 11634454 | R49: 7805037 | S49: 3823904
A50: SAMN15398095 | B50: Large white | C50: embryo | D50: 202896435 | E50: =D50-38209-94294 -> 202763932 | F50: 150 | G50: 20.2896435 | H50: 104670506 | I50: 81813098 | J50: 13584548 | K50: 2828283 | L50: 98.61% | M50: 186483604 | N50: 20728717 | O50: 87518905 | P50: 12010363 | Q50: 75508542 | R50: 35701023 | S50: 39798947
A51: SAMN15398096 | B51: Large white | C51: embryo | D51: 272994315 | E51: =D51-2322865-3913035 -> 266758415 | F51: 150 | G51: 27.2994315 | H51: 134556657 | I51: 113085115 | J51: 18183212 | K51: 7169331 | L51: 97.37% | M51: 247641772 | N51: 9413367 | O51: 13385051 | P51: 1730290 | Q51: 11654761 | R51: 6445670 | S51: 5207071
A52: SAMN15398097 | B52: Large white | C52: embryo | D52: 101972253 | E52: =D52-12483-34137 -> 101925633 | F52: 150 | G52: 10.1972253 | H52: 56101456 | I52: 37921946 | J52: 6095303 | K52: 1853548 | L52: 98.18% | M52: 94023402 | N52: 7373081 | O52: 17951969 | P52: 1490634 | Q52: 16461335 | R52: 11063295 | S52: 5394870
A53: SAMN15398098 | B53: Large white | C53: embryo | D53: 216936859 | E53: =D53-84-71812 -> 216864963 | F53: 150 | G53: 21.6936859 | H53: 117370440 | I53: 83183787 | J53: 12857120 | K53: 3525512 | L53: 98.37% | M53: 200554227 | N53: 17160553 | O53: 54263819 | P53: 3730806 | Q53: 50533013 | R53: 31152579 | S53: 19373648
A54: SAMN15398099 | B54: Large white | C54: embryo | D54: 127917719 | E54: =D54-16766-45244 -> 127855709 | F54: 150 | G54: 12.7917719 | H54: 73386055 | I54: 45725346 | J54: 6955438 | K54: 1850880 | L54: 98.55% | M54: 119111401 | N54: 6373093 | O54: 12725484 | P54: 965860 | Q54: 11759624 | R54: 7844680 | S54: 3912465
A55: SAMN15398100 | B55: Large white | C55: embryo | D55: 221842593 | E55: =D55-9115-64790 -> 221768688 | F55: 150 | G55: 22.1842593 | H55: 124020183 | I55: 80835987 | J55: 13926541 | K55: 3059882 | L55: 98.62% | M55: 204856170 | N55: 20274661 | O55: 77483092 | P55: 10150562 | Q55: 67332530 | R55: 29916118 | S55: 37408715
A56: SAMN15398101 | B56: Large white | C56: embryo | D56: 196274261 | E56: =D56-7874-65467 -> 196200920 | F56: 150 | G56: 19.6274261 | H56: 100315280 | I56: 78363993 | J56: 13335932 | K56: 4259056 | L56: 97.83% | M56: 178679273 | N56: 9611544 | O56: 17459119 | P56: 1225963 | Q56: 16233156 | R56: 7734397 | S56: 8497075
A57: SAMN15398102 | B57: Large white | C57: embryo | D57: 185721789 | E57: =D57-12458-63408 -> 185645923 | F57: 150 | G57: 18.5721789 | H57: 94936331 | I57: 76415687 | J57: 11878264 | K57: 2491507 | L57: 98.66% | M57: 171352018 | N57: 11969263 | O57: 29860179 | P57: 5252945 | Q57: 24607234 | R57: 12101728 | S57: 12503067
A58: SAMN15398103 | B58: Large white | C58: embryo | D58: 348569920 | E58: =D58-13732-80185 -> 348476003 | F58: 150 | G58: 34.856992 | H58: 183760068 | I58: 135201918 | J58: 23422845 | K58: 6185089 | L58: 98.23% | M58: 318961986 | N58: 26131738 | O58: 68004586 | P58: 12941296 | Q58: 55063290 | R58: 30186744 | S58: 24838950
A59: SAMN15398104 | B59: Large white | C59: embryo | D59: 316528813 | E59: =D59-23325-193677 -> 316311811 | F59: 150 | G59: 31.6528813 | H59: 149589527 | I59: 138633374 | J59: 23580298 | K59: 4725614 | L59: 98.51% | M59: 288222901 | N59: 22148756 | O59: 53275836 | P59: 10158829 | Q59: 43117007 | R59: 26527348 | S59: 16573297
A60: SAMN15398105 | B60: Large white | C60: embryo | D60: 266438792 | E60: =D60-2682-129074 -> 266307036 | F60: 150 | G60: 26.6438792 | H60: 129021660 | I60: 114415968 | J60: 19475467 | K60: 3525697 | L60: 98.68% | M60: 243437628 | N60: 21083074 | O60: 58029820 | P60: 10500730 | Q60: 47529090 | R60: 29336522 | S60: 18182151
A61: SAMN15398106 | B61: Large white | C61: embryo | D61: 536846174 | E61: =D61-88628-4013 -> 536753533 | F61: 150 | G61: 53.6846174 | H61: 256409135 | I61: 230114841 | J61: 45121164 | K61: 5201034 | L61: 99.03% | M61: 486523976 | N61: 70847345 | O61: 329877088 | P61: 43113615 | Q61: 286763473 | R61: 152594065 | S61: 134155780
A62: SAMN15398107 | B62: Large white | C62: embryo | D62: 445601960 | E62: =D62-6312-88801 -> 445506847 | F62: 150 | G62: 44.560196 | H62: 212407220 | I62: 190776580 | J62: 38425476 | K62: 3992684 | L62: 99.10% | M62: 403183800 | N62: 60802595 | O62: 293255809 | P62: 37587226 | Q62: 255668583 | R62: 134190711 | S62: 121463621
A63: SAMN15398119 | B63: Large white | C63: embryo | D63: 270169184 | E63: =D63-34711-366154 -> 269768319 | F63: 150 | G63: 27.0169184 | H63: 132777207 | I63: 114405159 | J63: 19240671 | K63: 3746147 | L63: 98.61% | M63: 247182366 | N63: 9836389 | O63: 15150756 | P63: 2398739 | Q63: 12752017 | R63: 6274167 | S63: 6476135
A64: SAMN15398120 | B64: Large white | C64: embryo | D64: 187004959 | E64: =D64-23743-309617 -> 186671599 | F64: 150 | G64: 18.7004959 | H64: 94684436 | I64: 76537312 | J64: 12726187 | K64: 3057024 | L64: 98.37% | M64: 171221748 | N64: 6967468 | O64: 11218577 | P64: 1956473 | Q64: 9262104 | R64: 4633469 | S64: 4627663
A65: SAMN15870115 | B65: bamaxiang | C65: adipose | D65: 587725218 | E65: =D65-148384 -> 587576834 | F65: 150 | G65: 58.7725218 | H65: 217194510 | I65: 300918718 | J65: 60570428 | K65: 9041562 | L65: 98.46% | M65: 518113228 | N65: 85499244 | O65: 321285349 | P65: 118851097 | Q65: 202434252 | R65: 73198307 | S65: 129223912
A66: SAMN15870116 | B66: bamaxiang | C66: adipose | D66: 596335021 | E66: =D66-17112 -> 596317909 | F66: 150 | G66: 59.6335021 | H66: 206249311 | I66: 319099023 | J66: 62415826 | K66: 8570861 | L66: 98.56% | M66: 525348334 | N66: 87515163 | O66: 340769548 | P66: 106569915 | Q66: 234199633 | R66: 71223648 | S66: 162960482
A67: SAMN15870117 | B67: bamaxiang | C67: adipose | D67: 694831448 | E67: =D67-13090 -> 694818358 | F67: 150 | G67: =2*D67*F67/(3*1000000000) -> 69.4831448 | H67: 278570356 | I67: 329495255 | J67: 70984538 | K67: 15781299 | L67: =1-(K67/D67) -> 97.73% | M67: 608065611 | N67: 96395526 | O67: 367752532 | P67: 125294588 | Q67: 242457944 | R67: 76551731 | S67: 165897197
A68: SAMN15870118 | B68: bamaxiang | C68: adipose | D68: 662927596 | E68: =D68-130025 -> 662797571 | F68: 150 | G68: 66.2927596 | H68: 254113757 | I68: 321199680 | J68: 63466066 | K68: 24148093 | L68: 96.36% | M68: 575313437 | N68: 90854086 | O68: 372010390 | P68: 123629725 | Q68: 248380665 | R68: 80585346 | S68: 167787635
A69: SAMN15870119 | B69: bamaxiang | C69: adipose | D69: 722765614 | E69: =D69-20895 -> 722744719 | F69: 150 | G69: 72.2765614 | H69: 238443493 | I69: 398165707 | J69: 76962064 | K69: 9194350 | L69: 98.73% | M69: 636609200 | N69: 106415062 | O69: 434457621 | P69: 132258677 | Q69: 302198944 | R69: 130847070 | S69: 171329753
A70: SAMN15870120 | B70: bamaxiang | C70: adipose | D70: 569145633 | E70: =D70-16435 -> 569129198 | F70: 150 | G70: 56.9145633 | H70: 211149756 | I70: 290452050 | J70: 59880239 | K70: 7663588 | L70: 98.65% | M70: 501601806 | N70: 82911428 | O70: 336438757 | P70: 114148742 | Q70: 222290015 | R70: 62782216 | S70: 159507600
A71: SAMN17833780 | B71: Luchuan | C71: embryo | D71: 1783211741 | E71: =D71-562715 -> 1782649026 | F71: 100 | G71: 118.8807827 | H71: 1324993669 | I71: 318185279 | J71: 124023087 | K71: 16009706 | L71: 99.10% | M71: 1643178948 | N71: 337069543 | O71: 1183134167 | P71: 562795129 | Q71: 620339038 | R71: 172369372 | S71: 447807630
A72: SAMN17833783 | B72: Luchuan | C72: embryo | D72: 1601913166 | E72: =D72-562715 -> 1601350451 | F72: 100 | G72: 106.7942111 | H72: 1132866826 | I72: 330064705 | J72: 122851894 | K72: 16129741 | L72: 98.99% | M72: 1462931531 | N72: 313934106 | O72: 877502360 | P72: 467873248 | Q72: 409629112 | R72: 127546189 | S72: 282023527
A73: SAMN17833785 | B73: Luchuan | C73: embryo | D73: 1474893705 | E73: =D73-522349 -> 1474371356 | F73: 100 | G73: 98.33 | H73: 981641312 | I73: 359923977 | J73: 119421284 | K73: 13907132 | L73: 99.06% | M73: 1341565289 | N73: 284867072 | O73: 765171623 | P73: 394886151 | Q73: 370285472 | R73: 125891673 | S73: 244352584

Sheet Table S3
A1: Table S3 Summary statistics of TAD results for 24 flittered samples
A2: Sample | B2: breed | C2: tissue | D2: number | E2: max length | F2: average length | G2: coverage
A3: SAMEA7390796 | B3: Large white | C3: muscle | D3: 971 | E3: 8800000 | F3: 1828530 | G3: 0.72908
A4: SAMEA7390798 | B4: Large white | C4: muscle | D4: 993 | E4: 5900000 | F4: 1699240 | G4: 0.692882
A5: SAMEA7390799 | B5: Large white | C5: muscle | D5: 940 | E5: 84500000 | F5: 1774890.019 | G5: 0.965071
A6: SAMN09690999 | B6: Large white | C6: ear | D6: 1077 | E6: 6500000 | F6: 1604270 | G6: 0.709492
A7: SAMN09691000 | B7: Large white | C7: ear | D7: 1055 | E7: 6500000 | F7: 1572090 | G7: 0.681056
A8: SAMN09691001 | B8: Rongchang | C8: ear | D8: 1054 | E8: 8800000 | F8: 1710340 | G8: 0.740249
A9: SAMN09691002 | B9: Rongchang | C9: ear | D9: 1002 | E9: 8800000 | F9: 1767070 | G9: 0.727068
A10: SAMN09691004 | B10: Large white | C10: adipose | D10: 983 | E10: 5800000 | F10: 1376400 | G10: 0.555587
A11: SAMN09691005 | B11: Large white | C11: adipose | D11: 1016 | E11: 7150000 | F11: 1751970 | G11: 0.730927
A12: SAMN09691006 | B12: bamaxiang | C12: liver | D12: 932 | E12: 11000000 | F12: 1614570 | G12: 0.86024
A13: SAMN09691007 | B13: bamaxiang | C13: liver | D13: 878 | E13: 17450000 | F13: 2155870 | G13: 0.777267
A14: SAMN09691009 | B14: bamaxiang | C14: liver | D14: 939 | E14: 10450000 | F14: 1857720 | G14: 0.716309
A15: SAMN09691010 | B15: bamaxiang | C15: liver | D15: 933 | E15: 11100000 | F15: 1924970 | G15: 0.737498
A16: SAMN09691011 | B16: bamaxiang | C16: liver | D16: 966 | E16: 11150000 | F16: 1735460 | G16: 0.688406
A17: SAMN09691012 | B17: bamaxiang | C17: liver | D17: 1012 | E17: 10400000 | F17: 1748570 | G17: 0.726636
A18: SAMN13676582 | B18: Large white | C18: muscle | D18: 1004 | E18: 9000000 | F18: 1786800 | G18: 0.736656
A19: SAMN14422843 | B19: Meishan | C19: muscle | D19: 1017 | E19: 6400000 | F19: 1638540 | G19: 0.68428
A20: SAMN15398106 | B20: Large white | C20: embryo | D20: 1065 | E20: 5650000 | F20: 1471360 | G20: 0.643463
A21: SAMN15870115 | B21: bamaxiang | C21: adipose | D21: 1036 | E21: 6250000 | F21: 1583540 | G21: 0.673665
A22: SAMN15870116 | B22: bamaxiang | C22: adipose | D22: 1034 | E22: 6650000 | F22: 1449790 | G22: 0.987656
A23: SAMN15870117 | B23: bamaxiang | C23: adipose | D23: 1047 | E23: 7100000 | F23: 1674930 | G23: 0.720107
A24: SAMN15870118 | B24: bamaxiang | C24: adipose | D24: 1019 | E24: 9600000 | F24: 1734940 | G24: 0.725959
A25: SAMN15870119 | B25: bamaxiang | C25: adipose | D25: 1035 | E25: 6800000 | F25: 1660970 | G25: 0.70592
A26: SAMN15870120 | B26: bamaxiang | C26: adipose | D26: 1034 | E26: 9700000 | F26: 1693180 | G26: 0.718916

Sheet Table S4
A1: TableS4 conserved TAD within for all individuals
A2: chr | B2: start | C2: end | D2: TADs count
A3: 1 | B3: 2750000 | C3: 3350000 | D3: 24
A4: 1 | B4: 3450000 | C4: 4950000 | D4: 24
A5: 1 | B5: 5200000 | C5: 6550000 | D5: 24
A6: 1 | B6: 12700000 | C6: 13300000 | D6: 24
A7: 1 | B7: 17650000 | C7: 18300000 | D7: 24
A8: 1 | B8: 21750000 | C8: 22650000 | D8: 24
A9: 1 | B9: 23250000 | C9: 25300000 | D9: 24
A10: 1 | B10: 26350000 | C10: 27150000 | D10: 24
A11: 1 | B11: 32050000 | C11: 33050000 | D11: 24
A12: 1 | B12: 34450000 | C12: 35450000 | D12: 24
A13: 1 | B13: 36100000 | C13: 36900000 | D13: 24
A14: 1 | B14: 38050000 | C14: 39100000 | D14: 24
A15: 1 | B15: 40300000 | C15: 41050000 | D15: 24
A16: 1 | B16: 41400000 | C16: 42050000 | D16: 24
A17: 1 | B17: 45500000 | C17: 48550000 | D17: 24
A18: 1 | B18: 56050000 | C18: 57000000 | D18: 24
A19: 1 | B19: 58850000 | C19: 60200000 | D19: 24
A20: 1 | B20: 62650000 | C20: 63350000 | D20: 24
A21: 1 | B21: 64850000 | C21: 66150000 | D21: 24
A22: 1 | B22: 66750000 | C22: 67500000 | D22: 24
A23: 1 | B23: 68550000 | C23: 68700000 | D23: 24
A24: 1 | B24: 71650000 | C24: 72500000 | D24: 24
A25: 1 | B25: 78300000 | C25: 79850000 | D25: 24
A26: 1 | B26: 80600000 | C26: 81250000 | D26: 24
A27: 1 | B27: 83000000 | C27: 83950000 | D27: 24
A28: 1 | B28: 84000000 | C28: 85950000 | D28: 24
A29: 1 | B29: 86300000 | C29: 87300000 | D29: 24
A30: 1 | B30: 93950000 | C30: 95150000 | D30: 24
A31: 1 | B31: 98300000 | C31: 98950000 | D31: 24
A32: 1 | B32: 101650000 | C32: 102300000 | D32: 24
A33: 1 | B33: 104600000 | C33: 105950000 | D33: 24
A34: 1 | B34: 201800000 | C34: 203000000 | D34: 24
A35: 1 | B35: 226500000 | C35: 227450000 | D35: 24
A36: 1 | B36: 231800000 | C36: 235550000 | D36: 24
A37: 1 | B37: 257900000 | C37: 259400000 | D37: 24
A38: 2 | B38: 96100000 | C38: 97450000 | D38: 24
A39: 2 | B39: 118150000 | C39: 119200000 | D39: 24
A40: 3 | B40: 60400000 | C40: 62000000 | D40: 24
A41: 3 | B41: 78700000 | C41: 79900000 | D41: 24
A42: 4 | B42: 78200000 | C42: 79150000 | D42: 24
A43: 5 | B43: 21850000 | C43: 22600000 | D43: 24
A44: 6 | B44: 36750000 | C44: 37550000 | D44: 24
A45: 7 | B45: 5500000 | C45: 7250000 | D45: 24
A46: 7 | B46: 42450000 | C46: 43650000 | D46: 24
A47: 7 | B47: 90250000 | C47: 91050000 | D47: 24
A48: 8 | B48: 39200000 | C48: 40950000 | D48: 24
A49: 9 | B49: 82950000 | C49: 84000000 | D49: 24
A50: 9 | B50: 90000000 | C50: 90800000 | D50: 24
A51: 10 | B51: 37050000 | C51: 38150000 | D51: 24
A52: 11 | B52: 43200000 | C52: 44800000 | D52: 24
A53: 11 | B53: 66950000 | C53: 67750000 | D53: 24
A54: 12 | B54: 36750000 | C54: 37400000 | D54: 24
A55: 13 | B55: 62800000 | C55: 63250000 | D55: 24
A56: 13 | B56: 95900000 | C56: 96950000 | D56: 24
A57: 13 | B57: 186850000 | C57: 187700000 | D57: 24
A58: 14 | B58: 57500000 | C58: 58750000 | D58: 24
A59: 14 | B59: 98950000 | C59: 99550000 | D59: 24
A60: 15 | B60: 57500000 | C60: 59100000 | D60: 24
A61: 15 | B61: 111650000 | C61: 112550000 | D61: 24
A62: 16 | B62: 29150000 | C62: 29900000 | D62: 24
A63: 16 | B63: 66150000 | C63: 67200000 | D63: 24
A64: 17 | B64: 55650000 | C64: 56700000 | D64: 24
A65: 18 | B65: 29350000 | C65: 29950000 | D65: 24

Sheet Table S5
A1: TableS5 Each comparison specific TAD region
B2: start | C2: end | D2: comparison
A3: 1 | B3: 27750000 | C3: 28900000 | D3: LargeWhite.vs.Rongchang
A4: 1 | B4: 29000000 | C4: 31000000 | D4: LargeWhite.vs.Rongchang
A5: 1 | B5: 31200000 | C5: 31900000 | D5: LargeWhite.vs.Rongchang
A6: 1 | B6: 31200000 | C6: 33250000 | D6: LargeWhite.vs.Rongchang
A7: 1 | B7: 32000000 | C7: 33250000 | D7: LargeWhite.vs.Rongchang
A8: 1 | B8: 33800000 | C8: 35600000 | D8: LargeWhite.vs.Rongchang
A9: 1 | B9: 76900000 | C9: 78000000 | D9: LargeWhite.vs.Rongchang
A10: 1 | B10: 78100000 | C10: 79850000 | D10: LargeWhite.vs.Rongchang
A11: 1 | B11: 79950000 | C11: 81650000 | D11: LargeWhite.vs.Rongchang
A12: 1 | B12: 98100000 | C12: 99000000 | D12: LargeWhite.vs.Rongchang
A13: 1 | B13: 98200000 | C13: 99000000 | D13: LargeWhite.vs.Rongchang
A14: 2 | B14: 120250000 | C14: 122850000 | D14: LargeWhite.vs.Rongchang
A15: 2 | B15: 123350000 | C15: 124250000 | D15: LargeWhite.vs.Rongchang
A16: 2 | B16: 127100000 | C16: 128100000 | D16: LargeWhite.vs.Rongchang
A17: 2 | B17: 127100000 | C17: 129650000 | D17: LargeWhite.vs.Rongchang
A18: 2 | B18: 127150000 | C18: 128100000 | D18: LargeWhite.vs.Rongchang
A19: 2 | B19: 33950000 | C19: 36700000 | D19: LargeWhite.vs.Rongchang
A20: 2 | B20: 35500000 | C20: 36650000 | D20: LargeWhite.vs.Rongchang
A21: 2 | B21: 37200000 | C21: 38750000 | D21: LargeWhite.vs.Rongchang
A22: 2 | B22: 84450000 | C22: 85350000 | D22: LargeWhite.vs.Rongchang
A23: 2 | B23: 87100000 | C23: 88200000 | D23: LargeWhite.vs.Rongchang
A24: 2 | B24: 88250000 | C24: 89000000 | D24: LargeWhite.vs.Rongchang
A25: 2 | B25: 60300000 | C25: 65350000 | D25: LargeWhite.vs.Bamaxiang
A26: 2 | B26: 65350000 | C26: 67100000 | D26: LargeWhite.vs.Bamaxiang
A27: 2 | B27: 67100000 | C27: 76450000 | D27: LargeWhite.vs.Bamaxiang
A28: 2 | B28: 76450000 | C28: 80100000 | D28: LargeWhite.vs.Bamaxiang
A29: 3 | B29: 118250000 | C29: 120050000 | D29: LargeWhite.vs.Rongchang
A30: 3 | B30: 120150000 | C30: 121000000 | D30: LargeWhite.vs.Rongchang
A31: 3 | B31: 120350000 | C31: 121800000 | D31: LargeWhite.vs.Rongchang
A32: 3 | B32: 121050000 | C32: 121800000 | D32: LargeWhite.vs.Rongchang
A33: 3 | B33: 121850000 | C33: 125100000 | D33: LargeWhite.vs.Rongchang
A34: 3 | B34: 123900000 | C34: 124950000 | D34: LargeWhite.vs.Rongchang
A35: 3 | B35: 125750000 | C35: 126750000 | D35: LargeWhite.vs.Rongchang
A36: 3 | B36: 27600000 | C36: 34150000 | D36: LargeWhite.vs.Bamaxiang
A37: 4 | B37: 109950000 | C37: 111250000 | D37: LargeWhite.vs.Rongchang
A38: 4 | B38: 112000000 | C38: 113500000 | D38: LargeWhite.vs.Rongchang
A39: 4 | B39: 112000000 | C39: 115200000 | D39: LargeWhite.vs.Rongchang
A40: 4 | B40: 112500000 | C40: 113400000 | D40: LargeWhite.vs.Rongchang
A41: 4 | B41: 113550000 | C41: 115200000 | D41: LargeWhite.vs.Rongchang
A42: 4 | B42: 115250000 | C42: 116900000 | D42: LargeWhite.vs.Rongchang
A43: 4 | B43: 21950000 | C43: 23350000 | D43: LargeWhite.vs.Rongchang
A44: 4 | B44: 24900000 | C44: 27800000 | D44: LargeWhite.vs.Rongchang
A45: 4 | B45: 25200000 | C45: 26100000 | D45: LargeWhite.vs.Rongchang
A46: 4 | B46: 26200000 | C46: 27800000 | D46: LargeWhite.vs.Rongchang
A47: 4 | B47: 58050000 | C47: 60450000 | D47: LargeWhite.vs.Rongchang
A48: 4 | B48: 61850000 | C48: 62800000 | D48: LargeWhite.vs.Rongchang
A49: 4 | B49: 63700000 | C49: 64650000 | D49: LargeWhite.vs.Rongchang
A50: 4 | B50: 64650000 | C50: 65400000 | D50: liver.vs.vadipose
A51: 4 | B51: 66550000 | C51: 67250000 | D51: liver.vs.vadipose
A52: 4 | B52: 52100000 | C52: 53050000 | D52: adipose.vs.muscle
A53: 4 | B53: 108000000 | C53: 109600000 | D53: ear.vs.muscle
A54: 4 | B54: 112500000 | C54: 113400000 | D54: ear.vs.muscle
A55: 4 | B55: 113550000 | C55: 115200000 | D55: ear.vs.muscle
A56: 4 | B56: 3050000 | C56: 4050000 | D56: ear.vs.muscle
A57: 4 | B57: 3100000 | C57: 4150000 | D57: ear.vs.muscle
A58: 4 | B58: 87700000 | C58: 91350000 | D58: LargeWhite.vs.Bamaxiang
A59: 4 | B59: 91350000 | C59: 96800000 | D59: LargeWhite.vs.Bamaxiang
A60: 4 | B60: 96800000 | C60: 99300000 | D60: LargeWhite.vs.Bamaxiang
A61: 5 | B61: 53900000 | C61: 56600000 | D61: LargeWhite.vs.Rongchang
A62: 5 | B62: 57900000 | C62: 59550000 | D62: LargeWhite.vs.Rongchang
A63: 5 | B63: 59650000 | C63: 60950000 | D63: LargeWhite.vs.Rongchang
A64: 5 | B64: 33850000 | C64: 35650000 | D64: adipose.vs.muscle
A65: 5 | B65: 33900000 | C65: 34800000 | D65: adipose.vs.muscle
A66: 5 | B66: 33850000 | C66: 34800000 | D66: ear.vs.muscle
A67: 5 | B67: 33850000 | C67: 35700000 | D67: ear.vs.muscle
A68: 5 | B68: 8750000 | C68: 16800000 | D68: LargeWhite.vs.Bamaxiang
A69: 6 | B69: 136150000 | C69: 137150000 | D69: adipose.vs.ear
A70: 6 | B70: 138450000 | C70: 140750000 | D70: adipose.vs.ear
A71: 6 | B71: 112700000 | C71: 113500000 | D71: LargeWhite.vs.Rongchang
A72: 6 | B72: 114800000 | C72: 115650000 | D72: LargeWhite.vs.Rongchang
A73: 6 | B73: 117050000 | C73: 117950000 | D73: LargeWhite.vs.Rongchang
A74: 6 | B74: 129850000 | C74: 133900000 | D74: LargeWhite.vs.Rongchang
A75: 6 | B75: 132400000 | C75: 133900000 | D75: LargeWhite.vs.Rongchang
A76: 6 | B76: 136100000 | C76: 137300000 | D76: LargeWhite.vs.Rongchang
A77: 7 | B77: 104300000 | C77: 109700000 | D77: LargeWhite.vs.Rongchang
A78: 7 | B78: 108150000 | C78: 109700000 | D78: LargeWhite.vs.Rongchang
A79: 7 | B79: 101850000 | C79: 103700000 | D79: ear.vs.muscle
A80: 8 | B80: 105150000 | C80: 109400000 | D80: LargeWhite.vs.Rongchang
A81: 8 | B81: 105200000 | C81: 107900000 | D81: LargeWhite.vs.Rongchang
A82: 8 | B82: 112800000 | C82: 113400000 | D82: LargeWhite.vs.Rongchang
A83: 8 | B83: 114050000 | C83: 117350000 | D83: LargeWhite.vs.Rongchang
A84: 8 | B84: 114250000 | C84: 115400000 | D84: LargeWhite.vs.Rongchang
A85: 8 | B85: 114250000 | C85: 115500000 | D85: LargeWhite.vs.Rongchang
A86: 8 | B86: 115550000 | C86: 116150000 | D86: LargeWhite.vs.Rongchang
A87: 8 | B87: 91500000 | C87: 93000000 | D87: LargeWhite.vs.Rongchang
A88: 8 | B88: 91500000 | C88: 93050000 | D88: LargeWhite.vs.Rongchang
A89: 8 | B89: 93250000 | C89: 95800000 | D89: LargeWhite.vs.Rongchang
A90: 8 | B90: 125750000 | C90: 128700000 | D90: ear.vs.muscle
A91: 8 | B91: 125800000 | C91: 128750000 | D91: ear.vs.muscle
A92: 8 | B92: 126400000 | C92: 127350000 | D92: ear.vs.muscle
A93: 8 | B93: 126400000 | C93: 127400000 | D93: ear.vs.muscle
A94: 8 | B94: 128750000 | C94: 129550000 | D94: ear.vs.muscle
A95: 8 | B95: 130600000 | C95: 131300000 | D95: ear.vs.muscle
A96: 8 | B96: 131400000 | C96: 132300000 | D96: ear.vs.muscle
A97: 8 | B97: 131400000 | C97: 133850000 | D97: ear.vs.muscle
A98: 8 | B98: 131450000 | C98: 132350000 | D98: ear.vs.muscle
A99: 8 | B99: 15250000 | C99: 17000000 | D99: ear.vs.muscle
A100: 8 | B100: 16200000 | C100: 17000000 | D100: ear.vs.muscle
A101: 8 | B101: 17200000 | C101: 18450000 | D101: ear.vs.muscle
A102: 8 | B102: 17200000 | C102: 19050000 | D102: ear.vs.muscle
A103: 8 | B103: 17250000 | C103: 18450000 | D103: ear.vs.muscle
A104: 8 | B104: 19350000 | C104: 25500000 | D104: ear.vs.muscle
A105: 8 | B105: 19550000 | C105: 20550000 | D105: ear.vs.muscle
A106: 8 | B106: 19650000 | C106: 20550000 | D106: ear.vs.muscle
A107: 8 | B107: 20300000 | C107: 25850000 | D107: ear.vs.muscle
A108: 8 | B108: 20600000 | C108: 22550000 | D108: ear.vs.muscle
A109: 8 | B109: 20600000 | C109: 22650000 | D109: ear.vs.muscle
A110: 8 | B110: 6450000 | C110: 9600000 | D110: ear.vs.muscle
A111: 8 | B111: 65450000 | C111: 67350000 | D111: ear.vs.muscle
A112: 8 | B112: 6550000 | C112: 8400000 | D112: ear.vs.muscle
A113: 8 | B113: 6650000 | C113: 8400000 | D113: ear.vs.muscle
A114: 8 | B114: 67500000 | C114: 68300000 | D114: ear.vs.muscle
A115: 8 | B115: 67550000 | C115: 68300000 | D115: ear.vs.muscle
A116: 8 | B116: 67550000 | C116: 69350000 | D116: ear.vs.muscle
A117: 8 | B117: 67550000 | C117: 69400000 | D117: ear.vs.muscle
A118: 8 | B118: 68350000 | C118: 69300000 | D118: ear.vs.muscle
A119: 8 | B119: 68350000 | C119: 69350000 | D119: ear.vs.muscle
A120: 8 | B120: 71600000 | C120: 74450000 | D120: ear.vs.muscle
A121: 8 | B121: 71650000 | C121: 74450000 | D121: ear.vs.muscle
A122: 8 | B122: 71800000 | C122: 72900000 | D122: ear.vs.muscle
A123: 8 | B123: 73050000 | C123: 74150000 | D123: ear.vs.muscle
A124: 8 | B124: 73100000 | C124: 74100000 | D124: ear.vs.muscle
A125: 8 | B125: 73300000 | C125: 74000000 | D125: ear.vs.muscle
A126: 8 | B126: 76250000 | C126: 77850000 | D126: ear.vs.muscle
A127: 8 | B127: 76300000 | C127: 77900000 | D127: ear.vs.muscle
A128: 8 | B128: 76550000 | C128: 77850000 | D128: ear.vs.muscle
A129: 8 | B129: 79000000 | C129: 80850000 | D129: ear.vs.muscle
A130: 8 | B130: 79500000 | C130: 80800000 | D130: ear.vs.muscle
A131: 8 | B131: 79550000 | C131: 80800000 | D131: ear.vs.muscle
A132: 8 | B132: 82500000 | C132: 83250000 | D132: ear.vs.muscle
A133: 8 | B133: 8450000 | C133: 9200000 | D133: ear.vs.muscle
A134: 9 | B134: 109950000 | C134: 113600000 | D134: LargeWhite.vs.Rongchang
A135: 9 | B135: 110250000 | C135: 111650000 | D135: LargeWhite.vs.Rongchang
A136: 9 | B136: 111750000 | C136: 113600000 | D136: LargeWhite.vs.Rongchang
A137: 9 | B137: 111800000 | C137: 112550000 | D137: LargeWhite.vs.Rongchang
A138: 9 | B138: 114000000 | C138: 114900000 | D138: LargeWhite.vs.Rongchang
A139: 9 | B139: 13000000 | C139: 15850000 | D139: LargeWhite.vs.Rongchang
A140: 9 | B140: 14600000 | C140: 15300000 | D140: LargeWhite.vs.Rongchang
A141: 9 | B141: 17950000 | C141: 18600000 | D141: LargeWhite.vs.Rongchang
A142: 9 | B142: 18650000 | C142: 19500000 | D142: LargeWhite.vs.Rongchang
A143: 9 | B143: 27000000 | C143: 32250000 | D143: LargeWhite.vs.Rongchang
A144: 9 | B144: 28450000 | C144: 31550000 | D144: LargeWhite.vs.Rongchang
A145: 9 | B145: 33800000 | C145: 35850000 | D145: LargeWhite.vs.Rongchang
A146: 10 | B146: 59000000 | C146: 59800000 | D146: LargeWhite.vs.Rongchang
A147: 10 | B147: 62300000 | C147: 63550000 | D147: LargeWhite.vs.Rongchang
A148: 11 | B148: 52700000 | C148: 54000000 | D148: adipose.vs.ear
A149: 11 | B149: 52700000 | C149: 55550000 | D149: adipose.vs.ear
A150: 11 | B150: 55650000 | C150: 56550000 | D150: adipose.vs.ear
A151: 11 | B151: 57950000 | C151: 58900000 | D151: adipose.vs.ear
A152: 11 | B152: 59000000 | C152: 60400000 | D152: adipose.vs.ear
A153: 11 | B153: 37100000 | C153: 39500000 | D153: LargeWhite.vs.Rongchang
A154: 11 | B154: 37350000 | C154: 39550000 | D154: LargeWhite.vs.Rongchang
A155: 11 | B155: 41850000 | C155: 42900000 | D155: LargeWhite.vs.Rongchang
A156: 11 | B156: 42950000 | C156: 44950000 | D156: LargeWhite.vs.Rongchang
A157: 11 | B157: 51550000 | C157: 52600000 | D157: LargeWhite.vs.Rongchang
A158: 11 | B158: 52700000 | C158: 53950000 | D158: LargeWhite.vs.Rongchang
A159: 11 | B159: 52700000 | C159: 55550000 | D159: LargeWhite.vs.Rongchang
A160: 11 | B160: 52700000 | C160: 55650000 | D160: LargeWhite.vs.Rongchang
A161: 11 | B161: 55700000 | C161: 56500000 | D161: LargeWhite.vs.Rongchang
A162: 11 | B162: 56600000 | C162: 58900000 | D162: LargeWhite.vs.Rongchang
A163: 11 | B163: 56650000 | C163: 57800000 | D163: LargeWhite.vs.Rongchang
A164: 11 | B164: 59000000 | C164: 60400000 | D164: LargeWhite.vs.Rongchang
A165: 11 | B165: 59000000 | C165: 60650000 | D165: LargeWhite.vs.Rongchang
A166: 11 | B166: 61050000 | C166: 63600000 | D166: LargeWhite.vs.Rongchang
A167: 11 | B167: 61100000 | C167: 61900000 | D167: LargeWhite.vs.Rongchang
A168: 12 | B168: 27550000 | C168: 31200000 | D168: LargeWhite.vs.Rongchang
A169: 12 | B169: 28650000 | C169: 29550000 | D169: LargeWhite.vs.Rongchang
A170: 12 | B170: 35400000 | C170: 36150000 | D170: LargeWhite.vs.Rongchang
A171: 12 | B171: 27600000 | C171: 31150000 | D171: ear.vs.muscle
A172: 12 | B172: 29700000 | C172: 31100000 | D172: ear.vs.muscle
A173: 12 | B173: 31200000 | C173: 32100000 | D173: ear.vs.muscle
A174: 12 | B174: 31200000 | C174: 33050000 | D174: ear.vs.muscle
A175: 12 | B175: 32150000 | C175: 33150000 | D175: ear.vs.muscle
A176: 12 | B176: 32200000 | C176: 33050000 | D176: ear.vs.muscle
A177: 12 | B177: 32200000 | C177: 33100000 | D177: ear.vs.muscle
A178: 12 | B178: 33300000 | C178: 34500000 | D178: ear.vs.muscle
A179: 12 | B179: 33350000 | C179: 34450000 | D179: ear.vs.muscle
A180: 12 | B180: 55550000 | C180: 56300000 | D180: ear.vs.muscle
A181: 12 | B181: 56400000 | C181: 57200000 | D181: ear.vs.muscle
A182: 12 | B182: 57300000 | C182: 58500000 | D182: ear.vs.muscle
A183: 12 | B183: 31700000 | C183: 38100000 | D183: LargeWhite.vs.Bamaxiang
A184: 12 | B184: 38100000 | C184: 43550000 | D184: LargeWhite.vs.Bamaxiang
A185: 12 | B185: 43550000 | C185: 49750000 | D185: LargeWhite.vs.Bamaxiang
A186: 13 | B186: 101100000 | C186: 104400000 | D186: adipose.vs.ear
A187: 13 | B187: 103500000 | C187: 104400000 | D187: adipose.vs.ear
A188: 13 | B188: 103550000 | C188: 104400000 | D188: adipose.vs.ear
A189: 13 | B189: 138050000 | C189: 138950000 | D189: adipose.vs.ear
A190: 13 | B190: 139000000 | C190: 139700000 | D190: adipose.vs.ear
A191: 13 | B191: 165900000 | C191: 169100000 | D191: adipose.vs.ear
A192: 13 | B192: 167750000 | C192: 168500000 | D192: adipose.vs.ear
A193: 13 | B193: 169250000 | C193: 170150000 | D193: adipose.vs.ear
A194: 13 | B194: 185300000 | C194: 186750000 | D194: adipose.vs.ear
A195: 13 | B195: 186850000 | C195: 188250000 | D195: adipose.vs.ear
A196: 13 | B196: 57000000 | C196: 59700000 | D196: adipose.vs.ear
A197: 13 | B197: 58550000 | C197: 59650000 | D197: adipose.vs.ear
A198: 13 | B198: 59750000 | C198: 60850000 | D198: adipose.vs.ear
A199: 13 | B199: 60900000 | C199: 61650000 | D199: adipose.vs.ear
A200: 13 | B200: 60900000 | C200: 61700000 | D200: adipose.vs.ear
... 68 more rows

Sheet Table S6
A1: TableS6 The number of genes within differential and conserved TADS for each comparison group
A2: Comparison | B2: GeneCount | C2: type
A3: LargeWhite.vs.Bamaxiang liver | B3: 427 | C3: LargeWhite specific TADs
A4: LargeWhite.vs.Bamaxiang liver | B4: 244 | C4: BamaXiang specific TADs
A5: LargeWhite.vs.Bamaxiang liver | B5: 11214 | C5: conserve TADs
A6: Ear.vs.Muscle of LargeWhite | B6: 542 | C6: Ear specific TADs
A7: Ear.vs.Muscle of LargeWhite | B7: 924 | C7: Muscle specific TADs
A8: Ear.vs.Muscle of LargeWhite | B8: 10643 | C8: conserve TADs
A9: Adipose.vs.Liver of Bamaxiang | B9: 393 | C9: Adipose specific TADs
A10: Adipose.vs.Liver of Bamaxiang | B10: 229 | C10: Liver specific TADs
A11: Adipose.vs.Liver of Bamaxiang | B11: 19574 | C11: conserve TADs
A12: Ear.vs.Adipoise of LargeWhite | B12: 109 | C12: Ear specific TADs
A13: Ear.vs.Adipoise of LargeWhite | B13: 364 | C13: Adipose specific TADs
A14: Ear.vs.Adipoise of LargeWhite | B14: 62722 | C14: conserve TADs
A15: Adipose.vs.Muscle of LargeWhite | B15: 373 | C15: Adipose specific TADs
A16: Adipose.vs.Muscle of LargeWhite | B16: 17 | C16: Muscle specific TADs
A17: Adipose.vs.Muscle of LargeWhite | B17: 109705 | C17: conserve TADs
A18: LargeWhite.vs.Rongchang ear | B18: 401 | C18: LargeWhite specific TADs
A19: LargeWhite.vs.Rongchang ear | B19: 312 | C19: Rongchang specific TADs
A20: LargeWhite.vs.Rongchang ear | B20: 65457 | C20: conserve TADs
A21: sum | B21: 6476 | C21: within total conserve TADs

Sheet Table S7
A1: TableS7 GO enrichment analysis of genes within conserve TADs
A2: ID | B2: ONTOLOGY | C2: Description | D2: GeneRatio | E2: BgRatio | F2: pvalue | G2: p.adjust | H2: qvalue | I2: geneID | J2: Count
A3: GO:0007389 | B3: BP | C3: pattern specification process | D3: 40/846 | E3: 118/6338 | F3: 6.937213519e-09 | G3: 2.052027759e-05 | H3: 1.884731378e-05 | I3: GSX2/SOX17/MESP2/MESP1/BMPR1A/SMAD4/HOXA9/GBX2/MEF2C/TRA2B/CYP26B1/LBX1/AP1B1/TBX18/OOEP/HOXB6/HOXB7/HOXB2/HOXB1/HOXB5/HOXA11/XRCC2/MLLT3/HOXA10/EXT1/DPCD/HOXA3/HOXA4/HOXA2/HOXA5/ROR2/NKX3-2/SMO/PBX1/CCDC39/BMP4/NKX2-1/OTX1/SPRY1/GSC | J3: 40
A4: GO:0048706 | B4: BP | C4: embryonic skeletal system development | D4: 18/846 | E4: 34/6338 | F4: 4.10457294e-08 | G4: 3.803696368e-05 | H4: 3.493591091e-05 | I4: HOXA9/HOXB6/HOXB7/HOXB2/HOXB1/HOXB5/HOXA11/EXT1/OSR2/EIF4A3/HOXA3/HOXA4/HOXA2/NKX3-2/SHOX2/PBX1/BMP4/GSC | J4: 18
A5: GO:0003002 | B5: BP | C5: regionalization | D5: 35/846 | E5: 102/6338 | F5: 4.32630833e-08 | G5: 3.803696368e-05 | H5: 3.493591091e-05 | I5: GSX2/SOX17/MESP2/MESP1/BMPR1A/SMAD4/HOXA9/GBX2/MEF2C/TRA2B/CYP26B1/TBX18/HOXB6/HOXB7/HOXB2/HOXB1/HOXB5/HOXA11/XRCC2/MLLT3/HOXA10/EXT1/DPCD/HOXA3/HOXA4/HOXA2/HOXA5/ROR2/SMO/PBX1/BMP4/NKX2-1/OTX1/SPRY1/GSC | J5: 35
A6: GO:0048562 | B6: BP | C6: embryonic organ morphogenesis | D6: 30/846 | E6: 81/6338 | F6: 5.685688075e-08 | G6: 3.803696368e-05 | H6: 3.493591091e-05 | I6: HMX3/SOX17/MESP1/HOXA9/GBX2/MEF2C/SOX9/LBX1/ID2/HOXB6/HOXB7/HOXB2/HOXB1/HOXB5/HOXA11/OSR2/EIF4A3/HOXA3/HOXA4/HOXA2/ROR2/NKX3-2/SHOX2/SMO/FOXL2/CCDC39/BMP4/SPRY2/OTX1/GSC | J6: 30
A7: GO:0009887 | B7: BP | C7: animal organ morphogenesis | D7: 66/846 | E7: 259/6338 | F7: 6.429507044e-08 | G7: 3.803696368e-05 | H7: 3.493591091e-05 | I7: CPE/PLEKHA1/NPY1R/NPY5R/HMX3/COL5A2/GSX2/SOX17/MESP2/MESP1/FGF5/BMPR1A/SMAD4/HOXA9/PRDM1/ADAM15/GBX2/MEF2C/SOX9/CYP26B1/GATA3/ESR1/RTN4/LBX1/RFLNB/LGR4/LIF/ID2/LHX9/HOXB6/HNF1A/HOXB7/HOXB2/HOXB1/HOXB5/NKX2-5/HOXA11/MLLT3/EXT1/OSR2/EIF4A3/TRAF6/HOXA3/HOXA4/HOXA2/ROR2/NKX3-2/SHOX2/SMO/BARX2/TNFAIP3/FOXL2/PBX1/CCDC39/BMP4/ODAPH/NKX2-1/TSKU/NPPC/SPRY2/FJX1/OTX1/SNX10/GNGT1/SPRY1/GSC | J7: 66
A8: GO:0009952 | B8: BP | C8: anterior/posterior pattern specification | D8: 26/846 | E8: 67/6338 | F8: 1.4811981e-07 | G8: 6.922818627e-05 | H8: 6.358419586e-05 | I8: SOX17/MESP2/MESP1/BMPR1A/SMAD4/HOXA9/GBX2/TBX18/HOXB6/HOXB7/HOXB2/HOXB1/HOXB5/HOXA11/XRCC2/MLLT3/HOXA10/HOXA3/HOXA4/HOXA2/HOXA5/ROR2/SMO/PBX1/BMP4/OTX1 | J8: 26
A9: GO:0048598 | B9: BP | C9: embryonic morphogenesis | D9: 44/846 | E9: 150/6338 | F9: 1.638259986e-07 | G9: 6.922818627e-05 | H9: 6.358419586e-05 | I9: HMX3/COL5A2/SOX17/MESP2/MESP1/BMPR1A/SMAD4/HOXA9/GBX2/MEF2C/SOX9/CYP26B1/GATA3/LBX1/RGMA/ID2/TBX18/HOXB6/HNF1A/HOXB7/HOXB2/HOXB1/HOXB5/HOXA11/HOXA10/EXT1/OSR2/PDX1/EIF4A3/TRAF6/HOXA3/HOXA4/HOXA2/ROR2/NKX3-2/SHOX2/SMO/FOXL2/PBX1/CCDC39/BMP4/SPRY2/OTX1/GSC | J9: 44
A10: GO:0048568 | B10: BP | C10: embryonic organ development | D10: 37/846 | E10: 117/6338 | F10: 1.989066559e-07 | G10: 7.354573601e-05 | H10: 6.754974722e-05 | I10: HMX3/VASH2/SOX17/MESP1/BMPR1A/HOXA9/PRDM1/GBX2/MEF2C/TRA2B/SOX9/LBX1/LIF/E2F8/ID2/HOXB6/HOXB7/HOXB2/HOXB1/HOXB5/HOXA11/OSR2/EIF4A3/HOXA3/HOXA4/HOXA2/ROR2/NKX3-2/SHOX2/SMO/FOXL2/PBX1/CCDC39/BMP4/SPRY2/OTX1/GSC | J10: 37
A11: GO:0048704 | B11: BP | C11: embryonic skeletal system morphogenesis | D11: 15/846 | E11: 27/6338 | F11: 2.4597501e-07 | G11: 8.084378663e-05 | H11: 7.425280712e-05 | I11: HOXA9/HOXB6/HOXB7/HOXB2/HOXB1/HOXB5/HOXA11/OSR2/EIF4A3/HOXA3/HOXA4/HOXA2/SHOX2/BMP4/GSC | J11: 15
A12: GO:0048705 | B12: BP | C12: skeletal system morphogenesis | D12: 25/846 | E12: 66/6338 | F12: 4.440606853e-07 | G12: 0.0001313531507 | H12: 0.0001206442767 | I12: PLEKHA1/HOXA9/MEF2C/SOX9/CYP26B1/RFLNB/HOXB6/HOXB7/HOXB2/HOXB1/HOXB5/HOXA11/EXT1/OSR2/EIF4A3/HOXA3/HOXA4/HOXA2/ROR2/NKX3-2/SHOX2/BARX2/BMP4/NPPC/GSC | J12: 25
A13: GO:0009792 | B13: BP | C13: embryo development ending in birth or egg hatching | D13: 43/846 | E13: 175/6338 | F13: 3.502189804e-05 | G13: 0.009417706764 | H13: 0.008649906109 | I13: VASH2/SOX17/MESP2/MESP1/BMPR1A/SMAD4/HOXA9/PRDM1/GBX2/SOX9/GATA3/RCN1/RTN4/RGMA/LIF/E2F8/SBDS/TBX18/HOXB6/HNF1A/HOXB7/HOXB2/HOXB1/HOXB5/EVX1/HOXA11/XRCC2/EXT1/OSR2/EIF4A3/TRAF6/HOXA3/HOXA4/HOXA2/ROR2/NKX3-2/SHOX2/ACVR1C/ADAM10/SMO/PBX1/BMP4/GSC | J13: 43
A14: GO:0061333 | B14: BP | C14: renal tubule morphogenesis | D14: 11/846 | E14: 22/6338 | F14: 3.893607387e-05 | G14: 0.009597742209 | H14: 0.008815263742 | I14: SMAD4/MEF2C/SOX9/GATA3/LGR4/HOXB7/HOXA11/LGR5/SMO/PBX1/BMP4 | J14: 11
A15: GO:0009790 | B15: BP | C15: embryo development | D15: 57/846 | E15: 257/6338 | F15: 5.017837703e-05 | G15: 0.01008792649 | H15: 0.009265484599 | I15: HMX3/COL5A2/VASH2/SOX17/MESP2/MESP1/BMPR1A/SMAD4/HOXA9/PRDM1/GBX2/MEF2C/TRA2B/SOX9/CYP26B1/GATA3/RCN1/RTN4/LBX1/RGMA/LIF/E2F8/SBDS/ID2/TBX18/OOEP/HOXB6/HNF1A/HOXB7/HOXB2/HOXB1/HOXB5/EVX1/HOXA11/XRCC2/HOXA10/EXT1/OSR2/PDX1/EIF4A3/TRAF6/HOXA3/HOXA4/HOXA2/ROR2/NKX3-2/SHOX2/ACVR1C/ADAM10/SMO/FOXL2/PBX1/CCDC39/BMP4/SPRY2/OTX1/GSC | J15: 57
A16: GO:0043009 | B16: BP | C16: chordate embryonic development | D16: 42/846 | E16: 172/6338 | F16: 5.042900069e-05 | G16: 0.01008792649 | H16: 0.009265484599 | I16: VASH2/SOX17/MESP2/MESP1/BMPR1A/SMAD4/HOXA9/PRDM1/GBX2/SOX9/GATA3/RCN1/RTN4/RGMA/LIF/E2F8/SBDS/TBX18/HOXB6/HNF1A/HOXB7/HOXB2/HOXB1/HOXB5/HOXA11/XRCC2/EXT1/OSR2/EIF4A3/TRAF6/HOXA3/HOXA4/HOXA2/ROR2/NKX3-2/SHOX2/ACVR1C/ADAM10/SMO/PBX1/BMP4/GSC | J16: 42
A17: GO:0001501 | B17: BP | C17: skeletal system development | D17: 34/846 | E17: 129/6338 | F17: 5.115581385e-05 | G17: 0.01008792649 | H17: 0.009265484599 | I17: PLEKHA1/COL5A2/BMPR1A/HOXA9/HAPLN1/MEF2C/SOX9/CYP26B1/IL17F/RFLNB/SBDS/HOXB6/HOXB7/HOXB2/HOXB1/HOXB5/HOXA11/HOXA10/EXT1/OSR2/EIF4A3/HOXA3/HOXA4/HOXA2/ROR2/NKX3-2/SHOX2/TMEM38B/BARX2/PBX1/BMP4/NPPC/SNX10/GSC | J17: 34
A18: GO:0006590 | B18: BP | C18: thyroid hormone generation | D18: 7/846 | E18: 101/6338 | F18: 6.130477375e-05 | G18: 0.01093092607 | H18: 0.01003975666 | I18: SLC5A5/CGA/GATA3/DUOXA1/DUOX2/DUOX1/TPO | J18: 7
A19: GO:0001656 | B19: BP | C19: metanephros development | D19: 11/846 | E19: 23/6338 | F19: 6.569000747e-05 | G19: 0.01093092607 | H19: 0.01003975666 | I19: SOX17/SMAD4/SOX9/GATA3/LGR4/LIF/HOXA11/OSR2/SMO/BMP4/SPRY1 | J19: 11
A20: GO:0072001 | B20: BP | C20: renal system development | D20: 22/846 | E20: 70/6338 | F20: 6.65167915e-05 | G20: 0.01093092607 | H20: 0.01003975666 | I20: SOX17/AGTR1/SMAD4/PRDM1/MEF2C/SOX9/GATA3/LGR4/LIF/AP1B1/TBX18/HOXB7/HOXA11/LGR5/EXT1/OSR2/UPK3A/SMO/PBX1/BMP4/ARL3/SPRY1 | J20: 22
A21: GO:0061326 | B21: BP | C21: renal tubule development | D21: 12/846 | E21: 27/6338 | F21: 7.49969705e-05 | G21: 0.01167584414 | H21: 0.01072394354 | I21: SMAD4/MEF2C/SOX9/GATA3/LGR4/LIF/HOXB7/HOXA11/LGR5/SMO/PBX1/BMP4 | J21: 12
A22: GO:0035107 | B22: BP | C22: appendage morphogenesis | D22: 14/846 | E22: 37/6338 | F22: 0.0001588055533 | G22: 0.02236889651 | H22: 0.02054521971 | I22: BMPR1A/SMAD4/HOXA9/SOX9/CYP26B1/HNF1A/HOXA11/HOXA10/EXT1/OSR2/ROR2/SHOX2/PBX1/BMP4 | J22: 14
A23: GO:0035108 | B23: BP | C23: limb morphogenesis | D23: 14/846 | E23: 37/6338 | F23: 0.0001588055533 | G23: 0.02236889651 | H23: 0.02054521971 | I23: BMPR1A/SMAD4/HOXA9/SOX9/CYP26B1/HNF1A/HOXA11/HOXA10/EXT1/OSR2/ROR2/SHOX2/PBX1/BMP4 | J23: 14
A24: GO:0072009 | B24: BP | C24: nephron epithelium development | D24: 12/846 | E24: 29/6338 | F24: 0.0001733019546 | G24: 0.02330123553 | H24: 0.0214015476 | I24: SMAD4/MEF2C/SOX9/GATA3/LGR4/LIF/HOXB7/HOXA11/EXT1/SMO/PBX1/BMP4 | J24: 12
A25: GO:0072028 | B25: BP | C25: nephron morphogenesis | D25: 10/846 | E25: 22/6338 | F25: 0.0002410626823 | G25: 0.02807202864 | H25: 0.02578339059 | I25: SMAD4/SOX9/GATA3/LGR4/LIF/HOXB7/HOXA11/SMO/PBX1/BMP4 | J25: 10
A26: GO:0072088 | B26: BP | C26: nephron epithelium morphogenesis | D26: 10/846 | E26: 22/6338 | F26: 0.0002410626823 | G26: 0.02807202864 | H26: 0.02578339059 | I26: SMAD4/SOX9/GATA3/LGR4/LIF/HOXB7/HOXA11/SMO/PBX1/BMP4 | J26: 10
A27: GO:0072006 | B27: BP | C27: nephron development | D27: 12/846 | E27: 30/6338 | F27: 0.0002541696411 | G27: 0.02807202864 | H27: 0.02578339059 | I27: SMAD4/MEF2C/SOX9/GATA3/LGR4/LIF/HOXB7/HOXA11/EXT1/SMO/PBX1/BMP4 | J27: 12
A28: GO:0001655 | B28: BP | C28: urogenital system development | D28: 23/846 | E28: 81/6338 | F28: 0.000255029106 | G28: 0.02807202864 | H28: 0.02578339059 | I28: SOX17/AGTR1/SMAD4/PRDM1/MEF2C/SOX9/GATA3/ESR1/LGR4/LIF/AP1B1/TBX18/HOXB7/HOXA11/LGR5/EXT1/OSR2/UPK3A/SMO/PBX1/BMP4/ARL3/SPRY1 | J28: 23
A29: GO:0072080 | B29: BP | C29: nephron tubule development | D29: 11/846 | E29: 26/6338 | F29: 0.0002562355555 | G29: 0.02807202864 | H29: 0.02578339059 | I29: SMAD4/MEF2C/SOX9/GATA3/LGR4/LIF/HOXB7/HOXA11/SMO/PBX1/BMP4 | J29: 11
A30: GO:0035295 | B30: BP | C30: tube development | D30: 56/846 | E30: 267/6338 | F30: 0.0002819414513 | G30: 0.02925558587 | H30: 0.02687045555 | I30: VASH2/SOX17/FGF1/MESP1/ANPEP/PLK2/RAB3A/PHF14/BMPR1A/AGTR1/SMAD4/PRDM1/SHC1/EFNA1/GBX2/SPINK2/MEF2C/ACKR3/SOX9/GATA3/IL17F/ESR1/LBX1/RGMA/LGR4/LIF/E2F8/LEPR/ID2/HOXB7/HOXB13/HOXA11/LGR5/ANGPT1/EXT1/SYK/PDX1/TRAF6/HOXA3/VEGFA/NKX3-2/SHOX2/TMEM38B/MET/PIK3CG/SMO/PBX1/CCDC39/BMP4/NKX2-1/BTG1/CLEC14A/SPRY2/ASB4/SPRY1/GSC | J30: 56
A31: GO:0045165 | B31: BP | C31: cell fate commitment | D31: 26/846 | E31: 97/6338 | F31: 0.0002868194693 | G31: 0.02925558587 | H31: 0.02687045555 | I31: GSX2/SOX17/MESP1/BMPR1A/SMAD4/IL6R/PRDM1/MEF2C/SOX9/CYP26B1/TCF7L2/GATA3/LBX1/WNT4/ID2/TBX18/HOXA11/EXT1/HOXA2/ROR2/SMO/OLIG3/BMP4/NKX2-1/SPRY2/GSC | J31: 26
A32: GO:0007411 | B32: BP | C32: axon guidance | D32: 17/846 | E32: 53/6338 | F32: 0.0003368001819 | G32: 0.03320849793 | H32: 0.03050109717 | I32: SMAD4/ETV1/EFNA1/GBX2/EPHA3/B3GNT2/UNC5B/EFNA4/APP/EVX1/EXT1/HOXA2/SMO/OTX2/NKX2-1/EFNB3/SEMA6D | J32: 17
A33: GO:0014033 | B33: BP | C33: neural crest cell differentiation | D33: 10/846 | E33: 23/6338 | F33: 0.0003759647398 | G33: 0.03430242784 | H33: 0.03150584187 | I33: BMPR1A/SMAD4/GBX2/MEF2C/SOX9/EXT1/SMO/BMP4/GSC/SEMA6D | J33: 10
A34: GO:0072359 | B34: BP | C34: circulatory system development | D34: 54/846 | E34: 258/6338 | F34: 0.000381158498 | G34: 0.03430242784 | H34: 0.03150584187 | I34: CPE/NPY1R/NPY5R/VASH2/SOX17/FGF1/MESP2/MESP1/ANPEP/PLK2/BMPR1A/AGTR1/SMAD4/PRDM1/BVES/SHC1/ADAM15/EFNA1/GBX2/MEF2C/ACKR3/NFATC2/SOX9/TCF7L2/GATA3/IL17F/RTN4/LBX1/LIF/E2F8/LEPR/AP1B1/TBX18/HOXB13/NKX2-5/ANGPT1/EXT1/SYK/ZFPM2/HOXA3/VEGFA/SHOX2/NEBL/ADAM10/PIK3CG/SMO/SGCD/CCDC39/BMP4/BTG1/REST/CLEC14A/SPRY2/ASB4 | J34: 54
A35: GO:0001822 | B35: BP | C35: kidney development | D35: 20/846 | E35: 68/6338 | F35: 0.0003826842862 | G35: 0.03430242784 | H35: 0.03150584187 | I35: SOX17/AGTR1/SMAD4/PRDM1/MEF2C/SOX9/GATA3/LGR4/LIF/AP1B1/HOXB7/HOXA11/EXT1/OSR2/UPK3A/SMO/PBX1/BMP4/ARL3/SPRY1 | J35: 20
A36: GO:0048863 | B36: BP | C36: stem cell differentiation | D36: 16/846 | E36: 49/6338 | F36: 0.0003992879426 | G36: 0.03473805101 | H36: 0.03190594984 | I36: SOX17/BMPR1A/SMAD4/GBX2/MEF2C/SOX9/ESR1/CHD2/LIF/MLLT3/EXT1/SMO/BMP4/REST/GSC/SEMA6D | J36: 16
A37: GO:1901700 | B37: BP | C37: response to oxygen-containing compound | D37: 66/846 | E37: 332/6338 | F37: 0.0004146959513 | G37: 0.03504773211 | H37: 0.03219038347 | I37: PLEKHA1/COL5A2/PLSCR3/CYP7A1/POSTN/FOXO1/SLC27A1/GIP/LPL/CD180/CPEB4/HSD3B1/CHRM3/SHC1/PMVK/ADAM15/SLC2A4/EPHA3/MEF2C/TRA2B/SOX9/CYP26B1/ESR1/IRS1/HAVCR2/LYPD1/FYN/GLRB/IGF1R/PLA2G1B/HNF1A/IRF8/RRAGA/EXT1/TNIP3/PDX1/TRAF6/OXR1/FIBIN/HOXA2/LEPROT/ADH5/LITAF/JUN/PIP4K2A/ATP2B1/PID1/MET/NR4A2/ACVR1C/SOCS1/CACNA2D1/DUSP10/SRI/SESN3/SMO/TNFAIP3/SSTR1/IGFBP5/NFKBIA/CAV2/IGFBP2/SMYD3/DUOX2/DUOX1/CFTR | J37: 66
A38: GO:0097485 | B38: BP | C38: neuron projection guidance | D38: 17/846 | E38: 54/6338 | F38: 0.0004315871333 | G38: 0.03531673996 | H38: 0.03243745982 | I38: SMAD4/ETV1/EFNA1/GBX2/EPHA3/B3GNT2/UNC5B/EFNA4/APP/EVX1/EXT1/HOXA2/SMO/OTX2/NKX2-1/EFNB3/SEMA6D | J38: 17
A39: GO:0043583 | B39: BP | C39: ear development | D39: 18/846 | E39: 59/6338 | F39: 0.0004538788249 | G39: 0.03531673996 | H39: 0.03243745982 | I39: HMX3/GBX2/SOX9/CLRN2/CDH23/GATA3/LGR5/OSR2/HOXA2/ROR2/NKX3-2/ADAM10/BMP4/GABRB2/TSKU/SPRY2/OTX1/GSC | J39: 18
A40: GO:0007492 | B40: BP | C40: endoderm development | D40: 8/846 | E40: 16/6338 | F40: 0.0004656365309 | G40: 0.03531673996 | H40: 0.03243745982 | I40: COL5A2/SOX17/MESP1/BMPR1A/SMAD4/EXT1/BMP4/NKX2-1 | J40: 8
A41: GO:0042403 | B41: BP | C41: thyroid hormone metabolic process | D41: 8/846 | E41: 16/6338 | F41: 0.0004656365309 | G41: 0.03531673996 | H41: 0.03243745982 | I41: DIO1/SLC5A5/CGA/GATA3/DUOXA1/DUOX2/DUOX1/TPO | J41: 8
A42: GO:0035239 | B42: BP | C42: tube morphogenesis | D42: 48/846 | E42: 225/6338 | F42: 0.0005084890617 | G42: 0.03585212366 | H42: 0.0329291951 | I42: VASH2/SOX17/FGF1/MESP1/ANPEP/PLK2/BMPR1A/AGTR1/SMAD4/PRDM1/SHC1/EFNA1/GBX2/MEF2C/ACKR3/SOX9/GATA3/IL17F/ESR1/LBX1/RGMA/LGR4/E2F8/LEPR/ID2/HOXB7/HOXB13/HOXA11/LGR5/ANGPT1/EXT1/SYK/TRAF6/HOXA3/VEGFA/SHOX2/MET/PIK3CG/SMO/PBX1/CCDC39/BMP4/NKX2-1/BTG1/CLEC14A/SPRY2/ASB4/SPRY1 | J42: 48
A43: GO:0030326 | B43: BP | C43: embryonic limb morphogenesis | D43: 12/846 | E43: 32/6338 | F43: 0.0005140093545 | G43: 0.03585212366 | H43: 0.0329291951 | I43: BMPR1A/SMAD4/HOXA9/CYP26B1/HNF1A/HOXA11/HOXA10/OSR2/ROR2/SHOX2/PBX1/BMP4 | J43: 12
A44: GO:0035113 | B44: BP | C44: embryonic appendage morphogenesis | D44: 12/846 | E44: 32/6338 | F44: 0.0005140093545 | G44: 0.03585212366 | H44: 0.0329291951 | I44: BMPR1A/SMAD4/HOXA9/CYP26B1/HNF1A/HOXA11/HOXA10/OSR2/ROR2/SHOX2/PBX1/BMP4 | J44: 12
A45: GO:0060675 | B45: BP | C45: ureteric bud morphogenesis | D45: 9/846 | E45: 20/6338 | F45: 0.0005454177027 | G45: 0.03585212366 | H45: 0.0329291951 | I45: SMAD4/SOX9/GATA3/LGR4/HOXB7/HOXA11/SMO/PBX1/BMP4 | J45: 9
A46: GO:0072078 | B46: BP | C46: nephron tubule morphogenesis | D46: 9/846 | E46: 20/6338 | F46: 0.0005454177027 | G46: 0.03585212366 | H46: 0.0329291951 | I46: SMAD4/SOX9/GATA3/LGR4/HOXB7/HOXA11/SMO/PBX1/BMP4 | J46: 9
A47: GO:0072171 | B47: BP | C47: mesonephric tubule morphogenesis | D47: 9/846 | E47: 20/6338 | F47: 0.0005454177027 | G47: 0.03585212366 | H47: 0.0329291951 | I47: SMAD4/SOX9/GATA3/LGR4/HOXB7/HOXA11/SMO/PBX1/BMP4 | J47: 9
A48: GO:0048729 | B48: BP | C48: tissue morphogenesis | D48: 37/846 | E48: 162/6338 | F48: 0.0005765272828 | G48: 0.03707321092 | H48: 0.03405073036 | I48: PALS1/SOX17/MESP2/MESP1/BMPR1A/SMAD4/GBX2/MEF2C/SOX9/GATA3/ESR1/LBX1/CDC42/RGMA/LGR4/LIF/TBX18/HNF1A/HOXB7/HOXB2/NKX2-5/HOXA11/LGR5/MLLT3/EXT1/PDX1/TRAF6/ROR2/SHOX2/MET/SMO/PBX1/CCDC39/BMP4/NKX2-1/SPRY2/SPRY1 | J48: 37
A49: GO:0048667 | B49: BP | C49: cell morphogenesis involved in neuron differentiation | D49: 30/846 | E49: 123/6338 | F49: 0.000597155552 | G49: 0.03758268346 | H49: 0.03451866696 | I49: TPBG/RAB3A/CDHR1/SMAD4/SIPA1L1/ETV1/BTBD3/EFNA1/GBX2/EPHA3/B3GNT2/UNC5B/RTN4/EFNA4/CDC42/CHODL/FYN/APP/EVX1/EXT1/HOXA2/SHOX2/NR4A2/SMO/OTX2/SLITRK3/NKX2-1/TSKU/EFNB3/SEMA6D | J49: 30
A50: GO:0048736 | B50: BP | C50: appendage development | D50: 14/846 | E50: 42/6338 | F50: 0.0007217270265 | G50: 0.04347702685 | H50: 0.03993246017 | I50: BMPR1A/SMAD4/HOXA9/SOX9/CYP26B1/HNF1A/HOXA11/HOXA10/EXT1/OSR2/ROR2/SHOX2/PBX1/BMP4 | J50: 14
A51: GO:0060173 | B51: BP | C51: limb development | D51: 14/846 | E51: 42/6338 | F51: 0.0007217270265 | G51: 0.04347702685 | H51: 0.03993246017 | I51: BMPR1A/SMAD4/HOXA9/SOX9/CYP26B1/HNF1A/HOXA11/HOXA10/EXT1/OSR2/ROR2/SHOX2/PBX1/BMP4 | J51: 14
A52: GO:0061564 | B52: BP | C52: axon development | D52: 27/846 | E52: 108/6338 | F52: 0.0007349057954 | G52: 0.04347702685 | H52: 0.03993246017 | I52: VASH2/RAB3A/SMAD4/ETV1/EFNA1/GBX2/EPHA3/B3GNT2/UNC5B/RTN4/EFNA4/RGMA/CHODL/APP/EVX1/EXT1/HOXA2/SHOX2/NR4A2/CNR1/SMO/OTX2/SLITRK3/NKX2-1/TSKU/EFNB3/SEMA6D | J52: 27
A53: GO:1901701 | B53: BP | C53: cellular response to oxygen-containing compound | D53: 52/846 | E53: 253/6338 | F53: 0.0007618340777 | G53: 0.0441863765 | H53: 0.04058397842 | I53: PLEKHA1/COL5A2/PLSCR3/CYP7A1/POSTN/FOXO1/SLC27A1/CD180/CPEB4/CHRM3/SHC1/ADAM15/SLC2A4/EPHA3/MEF2C/TRA2B/SOX9/CYP26B1/ESR1/IRS1/HAVCR2/LYPD1/FYN/IGF1R/PLA2G1B/IRF8/RRAGA/TNIP3/PDX1/TRAF6/OXR1/HOXA2/LEPROT/ADH5/LITAF/JUN/PIP4K2A/ATP2B1/PID1/MET/NR4A2/SOCS1/CACNA2D1/SRI/SESN3/SMO/TNFAIP3/SSTR1/NFKBIA/CAV2/SMYD3/CFTR | J53: 52
A54: GO:0002009 | B54: BP | C54: morphogenesis of an epithelium | D54: 32/846 | E54: 136/6338 | F54: 0.0007775923838 | G54: 0.04423304368 | H54: 0.04062684094 | I54: PALS1/SOX17/MESP1/SMAD4/GBX2/MEF2C/SOX9/GATA3/ESR1/LBX1/CDC42/RGMA/LGR4/LIF/TBX18/HOXB7/HOXB2/HOXA11/LGR5/MLLT3/EXT1/PDX1/TRAF6/ROR2/MET/SMO/PBX1/CCDC39/BMP4/NKX2-1/SPRY2/SPRY1 | J54: 32
A55: GO:0072073 | B55: BP | C55: kidney epithelium development | D55: 13/846 | E55: 38/6338 | F55: 0.0008415159565 | G55: 0.04696611697 | H55: 0.04313709402 | I55: SMAD4/MEF2C/SOX9/GATA3/LGR4/LIF/HOXB7/HOXA11/EXT1/SMO/PBX1/BMP4/SPRY1 | J55: 13
A56: GO:0003007 | B56: BP | C56: heart morphogenesis | D56: 20/846 | E56: 72/6338 | F56: 0.0008616719413 | G56: 0.04720047412 | H56: 0.04335234465 | I56: CPE/NPY1R/NPY5R/SOX17/MESP2/MESP1/BMPR1A/SMAD4/ADAM15/MEF2C/SOX9/GATA3/RTN4/LBX1/NKX2-5/EXT1/SHOX2/SMO/CCDC39/BMP4 | J56: 20
A57: GO:0071345 | B57: BP | C57: cellular response to cytokine stimulus | D57: 45/846 | E57: 213/6338 | F57: 0.0009359681109 | G57: 0.04946794831 | H57: 0.04543495769 | I57: SLC12A2/PRKN/SOX17/SRSF7/JAK3/SLC27A1/SMAD4/IL6R/TICAM2/LOC100155760/B3GNT2/SOX9/MSC/LOC100510975/IL17F/VRK2/PRLR/LEPR/IFNE/IRF8/EXT1/SYK/IFN-OMEGA-5/OSM/MRPL15/ADIPOR2/TRAF6/NFIL3/INA/SOCS1/IFNA1/IL22RA2/IFNGR1/SSTR1/IFN-ALPHAOMEGA/NFKBIA/IL15/SPRY2/IFN-DELTA-8/SNX10/ALOX15/DUOX2/DUOX1/ACKR1/GPS2 | J57: 45
A58: GO:0048699 | B58: BP | C58: generation of neurons | D58: 67/846 | E58: 348/6338 | F58: 0.0009365128822 | G58: 0.04946794831 | H58: 0.04543495769 | I58: PALS1/TPBG/VASH2/PRKN/TAOK1/GSX2/RAB3A/CDHR1/BMPR1A/BEND6/SMAD4/SIPA1L1/ETV1/BTBD3/PRDM1/EFNA1/GBX2/EPHA3/MEF2C/ZNF488/B3GNT2/SOX9/CLRN2/CDH23/UNC5B/RTN4/EFNA4/LBX1/PAQR3/WNT4/CDC42/RGMA/CHODL/FYN/LIF/APP/ID2/LHX9/NKX2-5/EVX1/XRCC2/EXT1/MTMR2/HOXA2/ROR2/VEGFA/AKNA/SHOX2/MET/NR4A2/CNR1/SMO/OLIG3/PBX1/OTX2/BMP4/GABRB2/ARL3/SLITRK3/NKX2-1/TSKU/REST/DNAJB11/GNGT1/DUOXA1/EFNB3/SEMA6D | J58: 67
A59: GO:0000981 | B59: MF | C59: DNA-binding transcription factor activity, RNA polymerase II-specific | D59: 82/880 | E59: 391/6996 | F59: 1.081188831e-06 | G59: 0.0004662687396 | H59: 0.0004431043802 | I59: HMX3/GSX2/CDX2/SOX17/MESP2/MESP1/NR5A2/SMAD3/FOXO1/ZIC1/ZNF292/SMAD4/HOXA9/ETV1/CREBRF/PRDM1/HOXA13/SIM1/GBX2/MEF2C/ZNF217/NFATC2/SOX9/MSC/NR1H4/CDC5L/IKZF5/ELF5/GATA3/ESR1/PPARA/LBX1/KLF3/PAX6/E2F8/TBX18/DMRTA1/LHX9/HOXB8/HOXB6/HNF1A/HOXB7/HOXB2/HOXB1/HOXB5/HOXB13/NKX2-5/EVX1/HOXA11/IRF8/ZNF232/HOXA10/OSR2/PDX1/ZNF280D/HOXA3/HOXA4/HOXA1/HOXA2/HOXA5/NFIL3/LITAF/JUN/NKX3-2/SHOX2/NR4A2/POU2F1/RORA/BARX2/FOXL2/OLIG3/PBX1/OTX2/NKX2-1/DLX5/NR3C1/REST/ZNF672/OTX1/GSC/CDX1/TP53 | J59: 82
A60: GO:0003700 | B60: MF | C60: DNA-binding transcription factor activity | D60: 94/880 | E60: 471/6996 | F60: 1.743060709e-06 | G60: 0.0004662687396 | H60: 0.0004431043802 | I60: HMX3/ATF3/GSX2/CDX2/SOX17/MESP2/MESP1/NR5A2/SMAD3/FOXO1/ZIC1/ZNF292/SMAD4/HOXA9/ETV1/CREBRF/PRDM1/HOXA13/SIM1/GBX2/MEF2C/NR2F1/ZNF217/NFATC2/SOX9/MSC/NR1H4/TCF7L2/CDC5L/IKZF5/ELF5/GATA3/EHF/ESR1/PPARA/LBX1/KLF3/ARNTL/PAX6/KLF5/E2F8/TBX18/DMRTA1/LHX9/HOXB8/HOXB6/HNF1A/HOXB7/HOXB2/HOXB1/HOXB5/HOXB13/NKX2-5/CREB5/EVX1/HOXA11/IRF8/ZNF232/HOXA10/OSR2/PDX1/TEAD4/FOXM1/ZNF280D/HOXA3/HOXA4/HOXA1/HOXA2/HOXA5/NFIL3/LITAF/JUN/NKX3-2/SHOX2/ZNF438/NR4A2/POU2F1/RORA/BARX2/ETS1/FOXL2/OLIG3/PBX1/OTX2/AHR/NKX2-1/DLX5/NR3C1/REST/ZNF672/OTX1/GSC/CDX1/TP53 | J60: 94
A61: GO:0043565 | B61: MF | C61: sequence-specific DNA binding | D61: 88/880 | E61: 478/6996 | F61: 9.616889632e-05 | G61: 0.01497982284 | H61: 0.01423562111 | I61: HMX3/GSX2/SOX17/MESP2/MESP1/SMAD3/ZNF385D/FOXO1/ZIC1/ORC4/SMAD4/MCM3/HOXA9/ETV1/CREBRF/PRDM1/SIM1/GBX2/MEF2C/NR2F1/RAG1/ZNF217/NFATC2/SOX9/MSC/NR1H4/TCF7L2/CDC5L/IKZF5/ELF5/GATA3/EHF/ESR1/PPARA/LBX1/KLF3/CHD2/E2F8/TBX18/DMRTA1/LHX9/HOXB6/HNF1A/HOXB7/HOXB2/HOXB1/HOXB5/HOXB13/NKX2-5/EVX1/HOXA11/IRF8/ZNF232/HOXA10/OSR2/PDX1/FOXM1/ZNF280D/HOXA3/HOXA4/HOXA1/HOXA2/HOXA5/NFIL3/LITAF/JUN/NKX3-2/SHOX2/NR4A2/POU2F1/RORA/BARX2/ETS1/FOXL2/OLIG3/PBX1/BASP1/MAEL/OTX2/TAF7/NKX2-1/NR3C1/REST/ZNF672/OTX1/SMYD3/GSC/TP53 | J61: 88
A62: GO:1990837 | B62: MF | C62: sequence-specific double-stranded DNA binding | D62: 78/880 | E62: 414/6996 | F62: 0.0001119986754 | G62: 0.01497982284 | H62: 0.01423562111 | I62: HMX3/GSX2/SOX17/MESP2/MESP1/SMAD3/ZNF385D/FOXO1/ZIC1/ORC4/SMAD4/MCM3/HOXA9/CREBRF/PRDM1/SIM1/GBX2/MEF2C/ZNF217/NFATC2/SOX9/MSC/TCF7L2/CDC5L/IKZF5/GATA3/ESR1/LBX1/KLF3/CHD2/E2F8/TBX18/DMRTA1/LHX9/HOXB6/HNF1A/HOXB7/HOXB2/HOXB1/HOXB5/HOXB13/NKX2-5/EVX1/HOXA11/IRF8/ZNF232/HOXA10/OSR2/PDX1/FOXM1/ZNF280D/HOXA3/HOXA4/HOXA1/HOXA2/HOXA5/NFIL3/LITAF/JUN/NKX3-2/SHOX2/NR4A2/POU2F1/BARX2/FOXL2/OLIG3/PBX1/BASP1/OTX2/TAF7/NKX2-1/NR3C1/REST/ZNF672/OTX1/SMYD3/GSC/TP53 | J62: 78
A63: GO:0000977 | B63: MF | C63: RNA polymerase II transcription regulatory region sequence-specific DNA binding | D63: 70/880 | E63: 366/6996 | F63: 0.0001585418388 | G63: 0.01696397675 | H63: 0.01612120172 | I63: HMX3/SOX17/MESP2/MESP1/SMAD3/FOXO1/ZIC1/SMAD4/HOXA9/CREBRF/PRDM1/SIM1/GBX2/MEF2C/ZNF217/NFATC2/SOX9/MSC/TCF7L2/CDC5L/IKZF5/GATA3/ESR1/KLF3/CHD2/E2F8/TBX18/DMRTA1/LHX9/HOXB6/HNF1A/HOXB7/HOXB2/HOXB1/HOXB5/HOXB13/NKX2-5/EVX1/HOXA11/IRF8/ZNF232/HOXA10/OSR2/PDX1/FOXM1/ZNF280D/HOXA3/HOXA4/HOXA1/HOXA2/HOXA5/NFIL3/LITAF/JUN/NKX3-2/NR4A2/POU2F1/BARX2/FOXL2/OLIG3/PBX1/OTX2/NKX2-1/NR3C1/REST/ZNF672/OTX1/SMYD3/GSC/TP53 | J63: 70
A64: GO:0003690 | B64: MF | C64: double-stranded DNA binding | D64: 80/880 | E64: 437/6996 | F64: 0.0002439017661 | G64: 0.02174790747 | H64: 0.02066746544 | I64: HMX3/GSX2/SOX17/HMGB1/MESP2/MESP1/SMAD3/ZNF385D/FOXO1/ZIC1/ORC4/SMAD4/MCM3/HOXA9/CREBRF/PRDM1/SIM1/GBX2/MEF2C/ZNF217/NFATC2/SOX9/MSC/TCF7L2/CDC5L/IKZF5/GATA3/ESR1/LBX1/KLF3/CHD2/E2F8/TBX18/DMRTA1/LHX9/HOXB6/HNF1A/HOXB7/HOXB2/HOXB1/HOXB5/HOXB13/NKX2-5/EVX1/HOXA11/IRF8/ZNF232/HOXA10/OSR2/PDX1/FOXM1/ZNF280D/HOXA3/HOXA4/HOXA1/HOXA2/HOXA5/NFIL3/LITAF/JUN/NKX3-2/SHOX2/NR4A2/POU2F1/BARX2/FOXL2/OLIG3/PBX1/BASP1/OTX2/TAF7/NKX2-1/CAMTA2/NR3C1/REST/ZNF672/OTX1/SMYD3/GSC/TP53 | J64: 80
A65: GO:0000976 | B65: MF | C65: transcription cis-regulatory region binding | D65: 72/880 | E65: 396/6996 | F65: 0.0006121980403 | G65: 0.04094074394 | H65: 0.03890679651 | I65: HMX3/SOX17/MESP2/MESP1/SMAD3/FOXO1/ZIC1/SMAD4/HOXA9/CREBRF/PRDM1/SIM1/GBX2/MEF2C/ZNF217/NFATC2/SOX9/MSC/TCF7L2/CDC5L/IKZF5/GATA3/ESR1/KLF3/CHD2/E2F8/TBX18/DMRTA1/LHX9/HOXB6/HNF1A/HOXB7/HOXB2/HOXB1/HOXB5/HOXB13/NKX2-5/EVX1/HOXA11/IRF8/ZNF232/HOXA10/OSR2/PDX1/FOXM1/ZNF280D/HOXA3/HOXA4/HOXA1/HOXA2/HOXA5/NFIL3/LITAF/JUN/NKX3-2/NR4A2/POU2F1/BARX2/FOXL2/OLIG3/PBX1/BASP1/OTX2/TAF7/NKX2-1/NR3C1/REST/ZNF672/OTX1/SMYD3/GSC/TP53 | J65: 72
A66: GO:0001067 | B66: MF | C66: transcription regulatory region nucleic acid binding | D66: 72/880 | E66: 396/6996 | F66: 0.0006121980403 | G66: 0.04094074394 | H66: 0.03890679651 | I66: HMX3/SOX17/MESP2/MESP1/SMAD3/FOXO1/ZIC1/SMAD4/HOXA9/CREBRF/PRDM1/SIM1/GBX2/MEF2C/ZNF217/NFATC2/SOX9/MSC/TCF7L2/CDC5L/IKZF5/GATA3/ESR1/KLF3/CHD2/E2F8/TBX18/DMRTA1/LHX9/HOXB6/HNF1A/HOXB7/HOXB2/HOXB1/HOXB5/HOXB13/NKX2-5/EVX1/HOXA11/IRF8/ZNF232/HOXA10/OSR2/PDX1/FOXM1/ZNF280D/HOXA3/HOXA4/HOXA1/HOXA2/HOXA5/NFIL3/LITAF/JUN/NKX3-2/NR4A2/POU2F1/BARX2/FOXL2/OLIG3/PBX1/BASP1/OTX2/TAF7/NKX2-1/NR3C1/REST/ZNF672/OTX1/SMYD3/GSC/TP53 | J66: 72

Sheet Table S8
A1: TableS8 KEGG enrichment analysis of genes within conserved TADs
A2: ID | B2: Description | C2: GeneRatio | D2: BgRatio | E2: pvalue | F2: p.adjust | G2: qvalue | H2: geneID | I2: Count
A3: ssc04550 | B3: ssc04550 | C3: Signaling pathways regulating pluripotency of stem cells | D3: 36/1001 | E3: 0.000002120 | F3: 0.0003796265842 | G3: 0.0003009385528 | H3: 102164478/100518649/110255708/397260/100169652/100521912/100519194/397282/397142/100623707/100524517/397491/100327037/100514152/399503/397350/654298/100521817/100626947/100622559/100516268/100144508/100520162/397202/100153248/100520800/100152307/100156756/595111/100113425/100739510/100286863/100337677/100520754/100520485/448810 | I3: 36
A4: ssc05206 | B4: ssc05206 | C4: MicroRNAs in cancer | D4: 56/1001 | E4: 0.000002343 | F4: 0.0003796265842 | G4: 0.0003009385528 | H4: 100316593/100316578/100520187/110255858/100152815/100625479/102166564/100498709/100517207/100498761/100525716/100623707/100156321/100155923/100144501/100498717/100525150/100316550/100170412/100526401/104796810/100498733/100316595/100154710/100512686/100620940/100316559/100505387/100316549/100316585/100498797/100498784/100622559/100498766/100512677/100498702/100337657/397157/100520800/100316571/100192444/100520325/654328/100307052/100498762/397084/397460/100316560/104796130/595110/100739510/100526391/100498783/100157266/448810/397276 | I4: 56
A5: ssc04360 | B5: ssc04360 | C5: Axon guidance | D5: 41/1001 | E5: 0.000008805 | F5: 0.0007728213757 | G5: 0.0006126329294 | H5: 100520864/100621284/100157635/100623707/100155923/100144501/100337658/100134969/733600/100154710/100519549/100518378/100327037/780428/100156429/100517310/100525245/791125/100524585/100523915/100620398/100622559/100154503/100516268/100156454/100154795/397241/654328/100144419/100621675/110261555/100515110/100620243/100739510/497233/100525283/100525766/100624508/100135672/100511850/100626014 | I5: 41
A6: ssc04015 | B6: ssc04015 | C6: Rap1 signaling pathway | D6: 46/1001 | E6: 0.000009541 | F6: 0.0007728213757 | G6: 0.0006126329294 | H6: 100517409/397497/100523181/102166564/100513672/100514949/100157762/100156242/100623707/100155923/100144501/100621398/100621523/397491/100516581/100152679/100154710/100525086/780428/100525245/397350/100521471/397009/100622559/100154503/100514179/100524161/100520932/397157/100520706/100153248/100516976/100192444/654328/100144419/100525120/100520160/100621675/100153223/100622999/102165436/100515047/100739510/100512494/100113360/100517086 | I6: 46
A7: ssc04151 | B7: ssc04151 | C7: PI3K-Akt signaling pathway | D7: 63/1001 | E7: 0.000070563 | F7: 0.004572502928 | G7: 0.003624726168 | H7: 100521477/100038030/100516050/100517188/100101925/100520187/397497/102165618/100627508/102166564/100518649/100628113/100513672/100156242/100623707/399522/100516642/100621776/100155923/100144501/397491/396742/100154710/100512686/100515967/100525086/100271930/414916/397350/100515635/100155319/100037284/397009/110261574/445459/100622559/100125540/100152038/100512677/100524161/397202/100520932/397157/100153248/100627126/654328/100525120/100037276/397686/396979/397460/100310806/100515047/100739510/100113360/448810/100626716/100519790/100522202/100156364/100525932/100517086/397276 | I7: 63
A8: ssc04211 | B8: ssc04211 | C8: Longevity regulating pathway | D8: 23/1001 | E8: 0.000093264 | F8: 0.005036268619 | G8: 0.003992363688 | H8: 100151990/100038030/100515868/100516050/110255858/100627508/100519728/100622699/397077/100623707/100739102/397491/100623628/100512686/397350/100515635/100622559/100512677/404694/100526065/100622999/100739510/397276 | I8: 23
A9: ssc04310 | B9: ssc04310 | C9: Wnt signaling pathway | D9: 35/1001 | E9: 0.000184455 | F9: 0.007983358566 | G9: 0.006328588337 | H9: 100154087/110255708/397260/100521912/397142/100154048/100135663/100134969/100156044/100153922/100623628/100516581/100152679/100521736/100327037/100518646/100626947/100151994/100157842/100513797/100516268/397241/100520620/100520050/100154208/396913/100621675/100522831/100517445/100157209/100738022/448810/100514516/397276/100626014 | I9: 35
A10: ssc04140 | B10: ssc04140 | C10: Autophagy - animal | D10: 31/1001 | E10: 0.000197120 | F10: 0.007983358566 | G10: 0.006328588337 | H10: 100151990/100516050/100157738/445521/110255858/100622699/100739486/100620224/100623707/100739102/100135663/100621398/110259297/100623628/100621326/100521736/100512686/100516103/397350/100153321/100622559/100157292/100512677/396629/100462716/100462748/100157658/100462744/100462745/100739510/100516293 | I10: 31
A11: ssc04152 | B11: ssc04152 | C11: AMPK signaling pathway | D11: 26/1001 | E11: 0.000919682 | F11: 0.02962052359 | G11: 0.02348085691 | H11: 100151990/100151822/100515868/100516050/100101925/110255858/100627508/100519104/397077/100524447/100623707/396754/100135663/397491/100135661/100512686/396836/397350/100515635/110261574/100622559/100512677/404694/100511343/100739510/403154 | I11: 26
A12: ssc05207 | B12: ssc05207 | C12: Chemical carcinogenesis - receptor activation | D12: 38/1001 | E12: 0.000948346 | F12: 0.02962052359 | G12: 0.02348085691 | H12: 100520187/100627508/100625479/397117/100513672/100156242/100623707/396715/100516491/100152209/397355/396742/100152951/100156773/100623628/396559/397435/397239/100525086/100038005/100515635/100622559/100154503/100498702/100510917/397157/396913/100144419/595111/100622999/100037976/397639/100151828/396654/100739510/100170767/448810/100518733 | I12: 38
A13: ssc04923 | B13: ssc04923 | C13: Regulation of lipolysis in adipocytes | D13: 15/1001 | E13: 0.001005635 | F13: 0.02962052359 | G13: 0.02348085691 | H13: 397547/110255858/654411/100623707/406869/397355/100623628/100512796/100512686/100516060/100622559/100144419/100622999/100739510/396811 | I13: 15
A14: ssc04010 | B14: ssc04010 | C14: MAPK signaling pathway | D14: 50/1001 | E14: 0.001195307 | F14: 0.03227328526 | G14: 0.02558376089 | H14: 100517409/100154202/100622172/100622259/100520187/397497/102166564/100038019/100513672/106504229/100156242/100522469/100155923/100144501/100135663/100621398/733590/110259297/397491/100623628/100521736/100154710/100525086/780428/397350/397009/100524741/396629/100524161/397241/397157/100153248/396913/100192444/654328/397377/100525120/100620898/100621675/397084/100517416/100518275/100512654/100525766/100170767/100154962/448810/100518733/100517086/397276 | I14: 50
A15: ssc05418 | B15: ssc05418 | C15: Fluid shear stress and atherosclerosis | D15: 28/1001 | E15: 0.001491724 | F15: 0.03717836386 | G15: 0.0294721273 | H15: 397117/106504229/100169652/397282/100623707/100522469/100135663/733590/100152209/396742/100152951/100521736/100622559/100154503/100510917/100152754/397157/396913/100152307/100621675/100113425/100739510/493772/100498783/100125375/404693/396925/397276 | I15: 28
A16: ssc00270 | B16: ssc00270 | C16: Cysteine and methionine metabolism | D16: 14/1001 | E16: 0.001697298 | F16: 0.03928033285 | G16: 0.03113840551 | H16: 100511756/100153230/100525733/100154490/396894/100513890/100511394/100312964/100516774/100626434/100514931/100153856/100525099/733654 | I16: 14
A17: ssc04810 | B17: ssc04810 | C17: Regulation of actin cytoskeleton | D17: 39/1001 | E17: 0.001979570 | F17: 0.04275870345 | G17: 0.03389578831 | H17: 100521477/102167387/110256718/100520151/100520864/100520187/397497/100152815/102166564/100513672/100156242/100623707/100144478/110255240/100621398/100621523/100514879/110259297/100525086/102159531/780428/100525245/396568/100512981/100037284/100622559/100154503/100513228/100524161/100153248/100520446/100192444/100037276/100621675/100511072/100739510/497233/100512494/100525766 | I17: 39
A18: ssc04926 | B18: ssc04926 | C18: Relaxin signaling pathway | D18: 26/1001 | E18: 0.002403555 | F18: 0.04442524167 | G18: 0.03521689073 | H18: 100623130/100152001/100520187/102165618/100038019/397024/100623707/100156321/100623628/100516581/100152679/100521736/100515635/100622559/100154503/397157/396913/100516976/100144419/100622999/100739510/406188/100170767/100626716/100519790/100522202 | I18: 26
A19: ssc04911 | B19: ssc04911 | C19: Insulin secretion | D19: 19/1001 | E19: 0.002432426 | F19: 0.04442524167 | G19: 0.03521689073 | H19: 397434/100144498/100519132/100621117/397045/100144478/100623628/100516581/100152679/100519705/100515635/100521933/397288/396856/100524640/100622999/100518733/100522212/100626014 | I19: 19
A20: ssc05205 | B20: ssc05205 | C20: Proteoglycans in cancer | D20: 37/1001 | E20: 0.002577447 | F20: 0.04442524167 | G20: 0.03521689073 | H20: 110256718/100520187/100152815/110255708/100517279/100521912/100623707/100621398/100525150/110259297/397491/100623628/397435/100327037/780428/397350/100626947/100157983/100622559/100154503/100516268/100152754/397157/100153248/654328/100525120/397084/100515110/100739510/100525766/100498783/100125375/404693/448810/100626716/397276/100626014 | I20: 37
A21: ssc04659 | B21: ssc04659 | C21: Th17 cell differentiation | D21: 23/1001 | E21: 0.002605183925 | F21: 0.04442524167 | G21: 0.03521689073 | H21: 100038019/100518649/100271900/397260/397142/399522/100621776/100134969/396742/100153486/733631/100621326/100037933/100521736/397241/397202/396913/397302/100156637/100152238/396654/406188/100739325 | I21: 23

Sheet Table S9
A1: Table S9 All genes and significantly differentially expressed genes within differential TADs between adipose and liver of Bamaxiang
C2: logFC | D2: logCPM | E2: LR | F2: PValue | G2: FDR | H2: sig
A3: 1 | B3: HGD | C3: 3.048043818 | D3: 13.72408145 | E3: 67.11855 | F3: 2.56E-16 | G3: 1.18E-14 | H3: Yes
A4: 2 | B4: ADPRH | C4: -4.004676493 | D4: 15.0364935 | E4: 49.31425109 | F4: 2.18E-12 | G4: 5.02E-11 | H4: Yes
A5: 3 | B5: COX17 | C5: 2.377964691 | D5: 12.24683861 | E5: 40.09562203 | F5: 2.42E-10 | G5: 3.71E-09 | H5: Yes
A6: 4 | B6: NCOA2 | C6: 5.077714296 | D6: 7.852420924 | E6: 26.80729624 | F6: 2.25E-07 | G6: 2.59E-06 | H6: Yes
A7: 5 | B7: ILDR1 | C7: 2.293053128 | D7: 9.769454402 | E7: 21.4695157 | F7: 3.59E-06 | G7: 2.90E-05 | H7: Yes
A8: 6 | B8: ARHGAP31 | C8: 1.800483139 | D8: 12.11075369 | E8: 21.37484458 | F8: 3.78E-06 | G8: 2.90E-05 | H8: Yes
A9: 7 | B9: GOLGB1 | C9: 4.378998924 | D9: 7.762633912 | E9: 16.50221843 | F9: 4.86E-05 | G9: 0.0003193266455 | H9: Yes
A10: 8 | B10: POPDC2 | C10: -2.285756866 | D10: 12.26386537 | E10: 16.02699854 | F10: 6.24E-05 | G10: 0.0003590623461 | H10: Yes
A11: 9 | B11: CD86 | C11: 2.452524358 | D11: 8.843802837 | E11: 13.9942814 | F11: 0.0001833674846 | G11: 0.0009372115879 | H11: Yes
A12: 10 | B12: SLC15A2 | C12: -4.037529406 | D12: 10.00050722 | E12: 10.81281358 | F12: 0.001007999961 | G12: 0.004636799819 | H12: Yes
A13: 11 | B13: IQCB1 | C13: -1.24868482 | D13: 12.75396776 | E13: 6.396122929 | F13: 0.01143698626 | G13: 0.04782739707 | H13: No
A14: 12 | B14: GTF2E1 | C14: 1.130777496 | D14: 10.54083444 | E14: 5.790314743 | F14: 0.01611470379 | G14: 0.0617730312 | H14: No
A15: 13 | B15: C8orf34 | C15: 1.492491525 | D15: 9.208926903 | E15: 5.42504992 | F15: 0.01984986791 | G15: 0.07023799416 | H15: No
A16: 14 | B16: LACTB2 | C16: 3.392165807 | D16: 7.482556705 | E16: 4.737377023 | F16: 0.02951403705 | G16: 0.09697469318 | H16: No
A17: 15 | B17: XKR9 | C17: 1.286290442 | D17: 9.434778406 | E17: 4.348341326 | F17: 0.03704500882 | G17: 0.1136046937 | H17: No
A18: 16 | B18: MIX23 | C18: 0.9943679584 | D18: 9.851642093 | E18: 3.178348215 | F18: 0.07462012744 | G18: 0.2145328664 | H18: No
A19: 17 | B19: NR1I2 | C19: -1.011661581 | D19: 10.97089566 | E19: 2.983413423 | F19: 0.0841216906 | G19: 0.2276233981 | H19: No
A20: 18 | B20: FAM162A | C20: 1.103284157 | D20: 9.285427257 | E20: 2.794466766 | F20: 0.09459022871 | G20: 0.2417305845 | H20: No
A21: 19 | B21: CFAP91 | C21: 0.6614751499 | D21: 11.25674217 | E21: 2.192541862 | F21: 0.1386802891 | G21: 0.3357522788 | H21: No
A22: 20 | B22: GSK3B | C22: 1.158918978 | D22: 8.703546969 | E22: 1.964257147 | F22: 0.1610587551 | G22: 0.3704351368 | H22: No
A23: 21 | B23: STXBP5L | C23: 0.7187439232 | D23: 10.09644275 | E23: 1.734752442 | F23: 0.187805103 | G23: 0.4113826066 | H23: No
A24: 22 | B24: RABL3 | C24: 0.6032449941 | D24: 10.86930663 | E24: 1.603265424 | F24: 0.2054410658 | G24: 0.4169685517 | H24: No
A25: 23 | B25: NDUFB4 | C25: -0.7170433843 | D25: 10.84708109 | E25: 1.580999795 | F25: 0.2086167399 | G25: 0.4169685517 | H25: No
A26: 24 | B26: SULF1 | C26: 1.932837981 | D26: 7.422121115 | E26: 1.520467174 | F26: 0.2175488096 | G26: 0.4169685517 | H26: No
A27: 25 | B27: B4GALT4 | C27: -1.007683121 | D27: 9.535383521 | E27: 1.361936224 | F27: 0.2432021988 | G27: 0.4474920458 | H27: No
A28: 26 | B28: PLA1A | C28: 1.187197725 | D28: 8.263286864 | E28: 1.305162586 | F28: 0.2532723667 | G28: 0.4480972642 | H28: No
A29: 27 | B29: EAF2 | C29: 1.118930722 | D29: 8.143040199 | E29: 0.9684599618 | F29: 0.3250645605 | G29: 0.5538136956 | H29: No
A30: 28 | B30: TRAM1 | C30: 1.327606284 | D30: 7.414070211 | E30: 0.8129764007 | F30: 0.3672417376 | G30: 0.6033257117 | H30: No
A31: 29 | B31: TIMMDC1 | C31: -1.002872911 | D31: 8.433152909 | E31: 0.514474261 | F31: 0.473208371 | G31: 0.7359258858 | H31: No
A32: 30 | B32: HCLS1 | C32: 0.9043974802 | D32: 8.006480189 | E32: 0.4877788861 | F32: 0.4849197689 | G32: 0.7359258858 | H32: No
A33: 31 | B33: TMEM39A | C33: -0.4738214901 | D33: 9.897645092 | E33: 0.459024456 | F33: 0.4980802482 | G33: 0.7359258858 | H33: No
A34: 32 | B34: CASR | C34: 0.3287326503 | D34: 10.57275528 | E34: 0.3901189187 | F34: 0.5322368997 | G34: 0.7359258858 | H34: No
A35: 33 | B35: FSTL1 | C35: 0.4932040064 | D35: 9.083285173 | E35: 0.3878643773 | F35: 0.5334241171 | G35: 0.7359258858 | H35: No
A36: 34 | B36: PREX2 | C36: 0.3698422936 | D36: 9.918647531 | E36: 0.3661421241 | F36: 0.5451146876 | G36: 0.7359258858 | H36: No
A37: 35 | B37: POGLUT1 | C37: -1.377148293 | D37: 7.767805567 | E37: 0.3398018697 | F37: 0.5599436088 | G37: 0.7359258858 | H37: No
A38: 36 | B38: POLQ | C38: 1.053077798 | D38: 7.490113302 | E38: 0.2462719166 | F38: 0.6197124557 | G38: 0.7654690364 | H38: No
A39: 37 | B39: KPNA1 | C39: 0.5337648922 | D39: 7.407325748 | E39: 0.2411303609 | F39: 0.623390898 | G39: 0.7654690364 | H39: No
A40: 38 | B40: UPK1B | C40: 0.6980886359 | D40: 7.851166147 | E40: 0.2090958845 | F40: 0.6474769651 | G40: 0.7654690364 | H40: No
A41: 39 | B41: CPA6 | C41: 0.5334496046 | D41: 8.250799475 | E41: 0.2071826694 | F41: 0.6489846178 | G41: 0.7654690364 | H41: No
A42: 40 | B42: LRRC58 | C42: -0.4182394583 | D42: 7.890207068 | E42: 0.05375868577 | F42: 0.8166473795 | G42: 0.9391444864 | H42: No
A43: 41 | B43: WDR5B | C43: -0.2988832359 | D43: 8.147809101 | E43: 0.04186045659 | F43: 0.8378859986 | G43: 0.9400672179 | H43: No
A44: 42 | B44: GPR156 | C44: -0.0910880194 | D44: 9.759083268 | E44: 0.01759190151 | F44: 0.8944824735 | G44: 0.9796712805 | H44: No
A45: 43 | B45: FBXO40 | C45: -0.0308849846 | D45: 19.79576861 | E45: 0.005977331564 | F45: 0.9383743868 | G45: 0.992495281 | H45: No
A46: 44 | B46: SLCO5A1 | C46: 0.08609537693 | D46: 7.448447646 | E46: 0.001432451749 | F46: 0.9698090772 | G46: 0.992495281 | H46: No
A47: 45 | B47: CD80 | C47: 0.07542311814 | D47: 7.658643802 | E47: 0.001328991072 | F47: 0.9709192967 | G47: 0.992495281 | H47: No
A48: 46 | B48: PRDM14 | C48: 0 | D48: 7.404440605 | E48: 0 | F48: 1 | G48: 1 | H48: No

Sheet Table S10
A1: TableS10 all genes and significantly differentially expressed genes within differential TADs between adipose and muscle of LargeWhite
C2: logFC | D2: logCPM | E2: LR | F2: PValue | G2: FDR | H2: sig
A3: 1 | B3: DPY19L1 | C3: -5.425992953 | D3: 14.23472899 | E3: 504.1668167 | F3: 1.18E-111 | G3: 3.89E-110 | H3: Yes
A4: 2 | B4: MYRFL | C4: -2.208936756 | D4: 15.45392744 | E4: 129.4433247 | F4: 5.42E-30 | G4: 8.95E-29 | H4: Yes
A5: 3 | B5: TBX20 | C5: -1.695321274 | D5: 14.47850634 | E5: 62.83551048 | F5: 2.25E-15 | G5: 2.47E-14 | H5: Yes
A6: 4 | B6: SLC5A3 | C6: 1.28643708 | D6: 17.39475004 | E6: 43.89046802 | F6: 3.47E-11 | G6: 2.56E-10 | H6: Yes
A7: 5 | B7: ITSN1 | C7: -2.031730536 | D7: 12.98111351 | E7: 43.67760274 | F7: 3.87E-11 | G7: 2.56E-10 | H7: Yes
A8: 6 | B8: KCNMB4 | C8: -1.222191204 | D8: 14.04810124 | E8: 27.57366734 | F8: 1.51E-07 | G8: 8.32E-07 | H8: Yes
A9: 7 | B9: LGR5 | C9: 1.903551248 | D9: 12.91261848 | E9: 20.40980511 | F9: 6.25E-06 | G9: 2.95E-05 | H9: Yes
A10: 8 | B10: NPSR1 | C10: 1.028186282 | D10: 15.26073891 | E10: 17.93978396 | F10: 2.28E-05 | G10: 9.41E-05 | H10: Yes
A11: 9 | B11: BMPER | C11: -1.311923565 | D11: 12.72646555 | E11: 15.41188805 | F11: 8.64E-05 | G11: 0.0003169567999 | H11: Yes
A12: 10 | B12: IMMP2L | C12: -0.7723910619 | D12: 14.56728243 | E12: 12.16435202 | F12: 0.0004871158483 | G12: 0.001607482299 | H12: No
A13: 11 | B13: HERPUD2 | C13: 0.5998824312 | D13: 18.10623397 | E13: 11.68534032 | F13: 0.0006299446311 | G13: 0.001889833893 | H13: No
A14: 12 | B14: ZFC3H1 | C14: -0.5805628653 | D14: 16.97536887 | E14: 11.17349905 | F14: 0.0008297399368 | G14: 0.002281784826 | H14: No
A15: 13 | B15: SMIM11 | C15: -1.031037852 | D15: 13.00708029 | E15: 10.72280005 | F15: 0.001058234112 | G15: 0.002686286592 | H15: Yes
A16: 14 | B16: RAB3IP | C16: 0.6845455249 | D16: 15.34201682 | E16: 8.578634568 | F16: 0.003401303348 | G16: 0.007771517196 | H16: No
A17: 15 | B17: KCNE1 | C17: 0.7063139963 | D17: 14.99279386 | E17: 8.509738712 | F17: 0.003532507816 | G17: 0.007771517196 | H17: No
A18: 16 | B18: ATP5PO | C18: -0.4598765597 | D18: 15.35626647 | E18: 4.639675609 | F18: 0.03124090719 | G18: 0.06443437108 | H18: No
A19: 17 | B19: PTPRR | C19: 0.6346700094 | D19: 12.71791537 | E19: 4.39526425 | F19: 0.03603887438 | G19: 0.06757489385 | H19: No
A20: 18 | B20: LRRC10 | C20: 0.6573039311 | D20: 12.72443742 | E20: 4.333380572 | F20: 0.03737195124 | G20: 0.06757489385 | H20: No
A21: 19 | B21: TSPAN8 | C21: -0.4948022291 | D21: 14.15195405 | E21: 4.264934156 | F21: 0.03890675707 | G21: 0.06757489385 | H21: No
A22: 20 | B22: C21orf140 | C22: -0.6528341539 | D22: 12.91607308 | E22: 3.583533261 | F22: 0.05835490983 | G22: 0.09628560121 | H22: No
A23: 21 | B23: CCT2 | C23: 0.644651403 | D23: 12.78162458 | E23: 2.820897532 | F23: 0.09304436207 | G23: 0.146212569 | H23: No
A24: 22 | B24: CNOT2 | C24: 0.3585573806 | D24: 12.69877781 | E24: 2.610533162 | F24: 0.1061560668 | G24: 0.1592341002 | H24: No
A25: 23 | B25: RALYL | C25: 0.3327667762 | D25: 12.69974408 | E25: 2.351603687 | F25: 0.1251541968 | G25: 0.179569065 | H25: No
A26: 24 | B26: MRPS6 | C26: -0.5106221467 | D26: 12.76349774 | E26: 2.121058582 | F26: 0.1452860952 | G26: 0.1997683809 | H26: No
A27: 25 | B27: KCNE2 | C27: -0.4963480687 | D27: 12.96700763 | E27: 2.033712166 | F27: 0.1538444416 | G27: 0.2030746629 | H27: No
A28: 26 | B28: BBS9 | C28: 0.267728046 | D28: 12.6928593 | E28: 1.906776636 | F28: 0.1673217552 | G28: 0.21236992 | H28: No
A29: 27 | B29: DPY19L2 | C29: -0.425534353 | D29: 12.92887428 | E29: 1.410307463 | F29: 0.2350053594 | G29: 0.2857328941 | H29: No
A30: 28 | B30: SMIM34 | C30: -0.3900493122 | D30: 12.96425924 | E30: 1.366349792 | F30: 0.2424400313 | G30: 0.2857328941 | H30: No
A31: 29 | B31: PTPRB | C31: 0.1961322178 | D31: 16.10505841 | E31: 0.9395477043 | F31: 0.3323941877 | G31: 0.3782416618 | H31: No
A32: 30 | B32: DOCK4 | C32: 0.1723992802 | D32: 15.05268856 | E32: 0.5845677255 | F32: 0.4445274673 | G32: 0.488980214 | H32: No
A33: 31 | B33: RCAN1 | C33: 0.04906230261 | D33: 16.2586307 | E33: 0.06204234191 | F33: 0.8032965776 | G33: 0.8551221632 | H33: No
A34: 32 | B34: BEST3 | C34: 0.04179065436 | D34: 14.65106698 | E34: 0.03291699145 | F34: 0.856029756 | G34: 0.8827806859 | H34: No
A35: 33 | B35: LRRN3 | C35: 0.02967866805 | D35: 12.80419628 | E35: 0.0008310594422 | F35: 0.9770016883 | G35: 0.9770016883 | H35: No

Sheet Table S11
A1: Table S11 Significantly differentially expressed genes within differential TADs of ear between LargeWhite and Rongchang
C2: logFC | D2: logCPM | E2: LR | F2: PValue | G2: FDR | H2: sig
A3: 1 | B3: ssc-mir-214 | C3: -1.63093474 | D3: 15.48461484 | E3: 23.57133621 | F3: 1.20E-06 | G3: 4.45E-05 | H3: Yes
A4: 2 | B4: PRRC2C | C4: 2.819116299 | D4: 12.72899132 | E4: 17.21953036 | F4: 3.33E-05 | G4: 0.0006160414463 | H4: Yes
A5: 3 | B5: GPM6A | C5: -1.444662058 | D5: 12.97671535 | E5: 14.15913604 | F5: 0.0001679794032 | G5: 0.002071745973 | H5: Yes
A6: 4 | B6: AASDHPPT | C6: 1.152114371 | D6: 13.36936892 | E6: 4.896995375 | F6: 0.02690346619 | G6: 0.2225753996 | H6: No
A7: 5 | B7: NBAS | C7: 1.055006064 | D7: 13.67973576 | E7: 4.448862687 | F7: 0.03492449853 | G7: 0.2225753996 | H7: No
A8: 6 | B8: LPIN1 | C8: 1.883637197 | D8: 11.06324142 | E8: 4.392690736 | F8: 0.03609330804 | G8: 0.2225753996 | H8: No
A9: 7 | B9: MYOC | C9: -1.148272643 | D9: 10.99928729 | E9: 3.783793629 | F9: 0.05175120288 | G9: 0.2735420724 | H9: No
A10: 8 | B10: BOLL | C10: 0.7910596808 | D10: 14.62508598 | E10: 3.010355142 | F10: 0.08273416246 | G10: 0.3826455014 | H10: No
A11: 9 | B11: PLCL1 | C11: -0.6289706928 | D11: 14.75177656 | E11: 2.611288722 | F11: 0.106105504 | G11: 0.3941123742 | H11: No
A12: 10 | B12: NTSR2 | C12: 1.377134686 | D12: 11.05121502 | E12: 2.582006544 | F12: 0.1080845717 | G12: 0.3941123742 | H12: No
A13: 11 | B13: GRIA4 | C13: 0.7072859689 | D13: 14.59515632 | E13: 2.452602567 | F13: 0.1173301885 | G13: 0.3941123742 | H13: No
A14: 12 | B14: LRATD1 | C14: 0.8490931727 | D14: 12.44658033 | E14: 2.318780145 | F14: 0.1278202295 | G14: 0.3941123742 | H14: No
A15: 13 | B15: DYNC2H1 | C15: 0.5821356721 | D15: 16.52035392 | E15: 2.011538368 | F15: 0.1561069541 | G15: 0.4443044079 | H15: No
A16: 14 | B16: SPCS3 | C16: -0.9206636552 | D16: 10.80004806 | E16: 1.723499721 | F16: 0.1892431767 | G16: 0.5001426812 | H16: No
A17: 15 | B17: CASP1 | C17: -0.6594301237 | D17: 11.69456189 | E17: 1.599296198 | F17: 0.2060029783 | G17: 0.5081406797 | H17: No
A18: 16 | B18: DNM3 | C18: 0.6066899477 | D18: 12.91625381 | E18: 1.404781199 | F18: 0.2359246796 | G18: 0.5455758217 | H18: No
A19: 17 | B19: PDGFD | C19: 0.6126006909 | D19: 12.01178998 | E19: 1.117133669 | F19: 0.2905364872 | G19: 0.6202765963 | H19: No
A20: 18 | B20: VAMP4 | C20: 0.6383875978 | D20: 11.59160845 | E20: 0.9965214935 | F20: 0.3181536711 | G20: 0.6202765963 | H20: No
A21: 19 | B21: ASB5 | C21: 0.4824438067 | D21: 13.25680534 | E21: 0.9950122517 | F21: 0.3185204143 | G21: 0.6202765963 | H21: No
A22: 20 | B22: DDI1 | C22: 0.4166005894 | D22: 14.92771345 | E22: 0.9282517187 | F22: 0.3353176273 | G22: 0.6203376105 | H22: No
A23: 21 | B23: MIR199A2 | C23: 0.376269635 | D23: 14.27322024 | E23: 0.7145634355 | F23: 0.3979330118 | G23: 0.6776835707 | H23: No
A24: 22 | B24: MSANTD4 | C24: 0.7483870633 | D24: 10.62863828 | E24: 0.699514171 | F24: 0.402946988 | G24: 0.6776835707 | H24: No
A25: 23 | B25: SATB2 | C25: 0.31363133 | D25: 14.19114725 | E25: 0.4969734438 | F25: 0.4808329919 | G25: 0.7735139435 | H25: No
A26: 24 | B26: SPATA4 | C26: 0.278143694 | D26: 13.92485683 | E26: 0.3852394869 | F26: 0.5348124047 | G26: 0.8245024573 | H26: No
A27: 25 | B27: AGA | C27: 0.2283783994 | D27: 15.03173449 | E27: 0.2966036128 | F27: 0.5860195268 | G27: 0.8417363725 | H27: No
A28: 26 | B28: NEIL3 | C28: 0.2200113687 | D28: 14.51518564 | E28: 0.2600160676 | F28: 0.6101091164 | G28: 0.8417363725 | H28: No
A29: 27 | B29: C1orf105 | C29: 0.2382609115 | D29: 13.12403821 | E29: 0.2540465852 | F29: 0.6142400556 | G29: 0.8417363725 | H29: No
A30: 28 | B30: GREB1 | C30: 0.3441374799 | D30: 10.91400024 | E30: 0.182555393 | F30: 0.6691863116 | G30: 0.8842819118 | H30: No
A31: 29 | B31: TRIB2 | C31: 0.0867985611 | D31: 10.55907978 | E31: 0.08610206422 | F31: 0.7691923262 | G31: 0.946031923 | H31: No
A32: 30 | B32: METTL13 | C32: -0.1133272925 | D32: 14.92510767 | E32: 0.07745802048 | F32: 0.7807722431 | G32: 0.946031923 | H32: No
A33: 31 | B33: DDX1 | C33: 0.1049186903 | D33: 15.95423012 | E33: 0.06912071824 | F33: 0.7926213409 | G33: 0.946031923 | H33: No
A34: 32 | B34: PIGC | C34: -0.111137788 | D34: 11.94717284 | E34: 0.04737503182 | F34: 0.8276955421 | G34: 0.9506154514 | H34: No
A35: 33 | B35: WDR17 | C35: 0.03803980582 | D35: 10.55598659 | E35: 0.03681303091 | F35: 0.8478462134 | G35: 0.9506154514 | H35: No
A36: 34 | B36: SLITRK1 | C36: 0.02203915325 | D36: 10.55487281 | E36: 0.02113949494 | F36: 0.8843995852 | G36: 0.9624348428 | H36: No
A37: 35 | B37: MARS2 | C37: 0.03507751805 | D37: 18.65887726 | E37: 0.008870736474 | F37: 0.9249625279 | G37: 0.9778175295 | H37: No
A38: 36 | B38: RFTN2 | C38: 0.01180114632 | D38: 15.56658045 | E38: 0.0008733591154 | F38: 0.9764238287 | G38: 0.9888637098 | H38: No
A39: 37 | B39: VEGFC | C39: -0.005650296193 | D39: 15.19161995 | E39: 0.000194818036 | F39: 0.9888637098 | G39: 0.9888637098 | H39: No
